Body,Body name,Date,Transaction number,Amount,Non recoverable VAT included in amount,Supplier name,Supplier ID,Expense area,Fund type,Expense type,Category description
http://thanet.gov.uk/supplierspend,Thanet District Council,02/06/2015,384885,300.00,,1st Margate St Johns Scout Group,1ST005,Corporate Resources and S151,Revenue,Rents,Grants
http://thanet.gov.uk/supplierspend,Thanet District Council,02/06/2015,385324,400.00,,Anna Becvar Consultancy,BEC002,Operational Services,Revenue,Cont Hire & Operating Lease,Consultancy
http://thanet.gov.uk/supplierspend,Thanet District Council,02/06/2015,385268,425.00,,Aqua Pure (South East) Limited,AQU007,Operational Services,Revenue,"Repairs,  Alter & Mtce - Build",Maritime Services
http://thanet.gov.uk/supplierspend,Thanet District Council,02/06/2015,385419,269.35,,Aquasoftukcom Limited,AQU008,Operational Services,Revenue,"Equip, Furniture And Materials",Maritime Services
http://thanet.gov.uk/supplierspend,Thanet District Council,02/06/2015,384454,9500.00,,Ass For Public Service Excellence,ASS013,Operational Services,Revenue,Services,Human Resources
http://thanet.gov.uk/supplierspend,Thanet District Council,02/06/2015,385386,765.00,,Aston Walker,AST008,Community Services,Revenue,Services,Cemetery And Crematorium
http://thanet.gov.uk/supplierspend,Thanet District Council,02/06/2015,385534,605.00,,Aston Walker,AST008,Community Services,Revenue,Services,Cemetery And Crematorium
http://thanet.gov.uk/supplierspend,Thanet District Council,02/06/2015,385321,259.98,,Canterbury City Council,CAN004,East Kent Shared Services,Revenue,Expenses,Various Cats-Public Sector
http://thanet.gov.uk/supplierspend,Thanet District Council,02/06/2015,385322,216.65,,Canterbury City Council,CAN004,East Kent Shared Services,Revenue,Expenses,Various Cats-Public Sector
http://thanet.gov.uk/supplierspend,Thanet District Council,02/06/2015,384988,537.53,,Channel Commercials Plc,CCO001,Operational Services,Revenue,Direct Transport Costs,Vehicle Management
http://thanet.gov.uk/supplierspend,Thanet District Council,02/06/2015,384989,387.65,,Channel Commercials Plc,CCO001,Operational Services,Revenue,Direct Transport Costs,Vehicle Management
http://thanet.gov.uk/supplierspend,Thanet District Council,02/06/2015,385899,295.00,,Cipfa Business Ltd,CIP008,Corporate Resources and S151,Revenue,"Print, Stat And Gen Off Exps",Financial Services
http://thanet.gov.uk/supplierspend,Thanet District Council,02/06/2015,385494,333.96,,City Electrical Factors Ltd,CIT001,Operational Services,Revenue,"Repairs,  Alter & Mtce - Build",Building Construction Material
http://thanet.gov.uk/supplierspend,Thanet District Council,02/06/2015,385348,232.45,,Civica Uk Ltd,CIV003,East Kent Shared Services,Revenue,Expenses,ICT
http://thanet.gov.uk/supplierspend,Thanet District Council,02/06/2015,385773,1000.00,,Civica Uk Ltd,CIV003,East Kent Shared Services,Revenue,Communications & Computing,ICT
http://thanet.gov.uk/supplierspend,Thanet District Council,02/06/2015,385774,1380.89,,Civica Uk Ltd,CIV003,East Kent Shared Services,Revenue,Communications & Computing,ICT
http://thanet.gov.uk/supplierspend,Thanet District Council,02/06/2015,385021,360.00,,Cole Jarman Ltd,COL031,Community Services,Revenue,Services,Legal Services
http://thanet.gov.uk/supplierspend,Thanet District Council,02/06/2015,385796,922.98,,Computerland Uk Limited,COM045,Corporate Resources and S151,Revenue,Communications & Computing,ICT
http://thanet.gov.uk/supplierspend,Thanet District Council,02/06/2015,385883,294.68,,Computerland Uk Limited,COM045,Community Services,Revenue,Communications & Computing,ICT
http://thanet.gov.uk/supplierspend,Thanet District Council,02/06/2015,385464,242.50,,Contacta Systems Limited,CON048,Community Services,Revenue,"Equip, Furniture And Materials",Arts And Leisure Services
http://thanet.gov.uk/supplierspend,Thanet District Council,02/06/2015,385869,709.44,,Corporate Direct (Europe) Ltd,COR006,East Kent Shared Services,Revenue,Communications & Computing,ICT
http://thanet.gov.uk/supplierspend,Thanet District Council,02/06/2015,385923,5447.86,,Crimson Crescent Ltd,CRI005,Corporate Resources and S151,Balance Sheet,Capital Exp-Non Council Assets,Grants
http://thanet.gov.uk/supplierspend,Thanet District Council,02/06/2015,385535,300.00,,David Forsdick Qc,FOR020,Corporate Resources and S151,Balance Sheet,Other Land And Buildings-Hra,Legal Services
http://thanet.gov.uk/supplierspend,Thanet District Council,02/06/2015,385205,142757.21,,Dcb (Kent) Ltd,DCB001,Corporate Resources and S151,Balance Sheet,Repairs And Mtce Holding A/C,Construction-Repair And Maint
http://thanet.gov.uk/supplierspend,Thanet District Council,02/06/2015,385206,13325.22,,Dcb (Kent) Ltd,DCB001,Corporate Resources and S151,Balance Sheet,Repairs And Mtce Holding A/C,Construction-Repair And Maint
http://thanet.gov.uk/supplierspend,Thanet District Council,02/06/2015,385207,4158.00,,Dcb (Kent) Ltd,DCB001,Corporate Resources and S151,Balance Sheet,Repairs And Mtce Holding A/C,Construction-Repair And Maint
http://thanet.gov.uk/supplierspend,Thanet District Council,02/06/2015,385208,1317.38,,Dcb (Kent) Ltd,DCB001,Corporate Resources and S151,Balance Sheet,Repairs And Mtce Holding A/C,Construction-Repair And Maint
http://thanet.gov.uk/supplierspend,Thanet District Council,02/06/2015,385275,577.26,,Dennis Eagle Ltd,DEN005,Operational Services,Revenue,Direct Transport Costs,Vehicle Management
http://thanet.gov.uk/supplierspend,Thanet District Council,02/06/2015,385281,549.80,,Dennis Eagle Ltd,DEN005,Operational Services,Revenue,Direct Transport Costs,Vehicle Management
http://thanet.gov.uk/supplierspend,Thanet District Council,02/06/2015,385509,301.18,,Dennis Eagle Ltd,DEN005,Operational Services,Revenue,Direct Transport Costs,Vehicle Management
http://thanet.gov.uk/supplierspend,Thanet District Council,02/06/2015,385933,5200.00,,Dolphin Lifts Kent,DOL003,Corporate Resources and S151,Balance Sheet,Capital Exp-Non Council Assets,Grants
http://thanet.gov.uk/supplierspend,Thanet District Council,02/06/2015,385463,450.00,,Doutchstage Engineering,DOU005,Operational Services,Revenue,"Equip, Furniture And Materials",Cemetery And Crematorium
http://thanet.gov.uk/supplierspend,Thanet District Council,02/06/2015,385253,5739.17,,Dover District Council,DOV001,Corporate Resources and S151,Revenue,Services,Various Cats-Public Sector
http://thanet.gov.uk/supplierspend,Thanet District Council,02/06/2015,385255,375.00,,Dover District Council,DOV001,Corporate Resources and S151,Revenue,Training,Various Cats-Public Sector
http://thanet.gov.uk/supplierspend,Thanet District Council,02/06/2015,385606,24099.43,,Dover District Council,DOV001,Corporate Resources and S151,Revenue,Services,Various Cats-Public Sector
http://thanet.gov.uk/supplierspend,Thanet District Council,02/06/2015,385734,12853.03,,Dover District Council,DOV001,East Kent Shared Services,Revenue,Services,Various Cats-Public Sector
http://thanet.gov.uk/supplierspend,Thanet District Council,02/06/2015,385302,2325.00,,Dr Alexander Marshall,MAR100,Operational Services,Revenue,Services,Cemetery And Crematorium
http://thanet.gov.uk/supplierspend,Thanet District Council,02/06/2015,385315,1870.80,,E Saunders Margate Ltd,SAU001,Community Services,Revenue,"Repairs,  Alter & Mtce - Build",Construction-Repair And Maint
http://thanet.gov.uk/supplierspend,Thanet District Council,02/06/2015,385260,397.20,,Eagle Envelopes Ltd,EAG001,East Kent Shared Services,Revenue,"Print, Stat And Gen Off Exps",Stationery
http://thanet.gov.uk/supplierspend,Thanet District Council,02/06/2015,386016,1300.00,,Edge Enviro Services Ltd,EDG001,Operational Services,Revenue,Services,Human Resources
http://thanet.gov.uk/supplierspend,Thanet District Council,02/06/2015,385405,1620.00,,Egbert H Taylor & Company Ltd,TAY005,Operational Services,Revenue,"Equip, Furniture And Materials",Environmental Services
http://thanet.gov.uk/supplierspend,Thanet District Council,02/06/2015,384011,990.00,,Eh Advertising Ltd,EHA002,Community Services,Revenue,"Equip, Furniture And Materials",Stationery
http://thanet.gov.uk/supplierspend,Thanet District Council,02/06/2015,385242,13274.84,,Facultatieve Technologies,FAC003,Operational Services,Revenue,"Repairs,  Alter & Mtce - Build",Cemetery And Crematorium
http://thanet.gov.uk/supplierspend,Thanet District Council,02/06/2015,385929,1214.40,,Family Mosaic Housing,FAM001,Corporate Resources and S151,Balance Sheet,Capital Exp-Non Council Assets,Housing Management
http://thanet.gov.uk/supplierspend,Thanet District Council,02/06/2015,384893,480.00,,Fuel Sure,FUE002,Operational Services,Revenue,"Repairs,  Alter & Mtce - Build",Construction-Repair And Maint
http://thanet.gov.uk/supplierspend,Thanet District Council,02/06/2015,385263,72.14,,G & G Forklifts,GGF001,Operational Services,Revenue,"Equip, Furniture And Materials",Vehicle Management
http://thanet.gov.uk/supplierspend,Thanet District Council,02/06/2015,385263,211.99,,G & G Forklifts,GGF001,Operational Services,Revenue,"Repairs,  Alter & Mtce - Build",Vehicle Management
http://thanet.gov.uk/supplierspend,Thanet District Council,02/06/2015,378769,8000.00,,Gardiner & Theobald Llp,GAR020,Corporate Resources and S151,Balance Sheet,Investment Property For Lease,Consultancy
http://thanet.gov.uk/supplierspend,Thanet District Council,02/06/2015,384328,770.00,,Gulliver'S Truck Hire Limited,GUL001,Operational Services,Revenue,Cont Hire & Operating Lease,Vehicle Management
http://thanet.gov.uk/supplierspend,Thanet District Council,02/06/2015,384765,770.00,,Gulliver'S Truck Hire Limited,GUL001,Operational Services,Revenue,Cont Hire & Operating Lease,Vehicle Management
http://thanet.gov.uk/supplierspend,Thanet District Council,02/06/2015,385197,770.00,,Gulliver'S Truck Hire Limited,GUL001,Operational Services,Revenue,Cont Hire & Operating Lease,Vehicle Management
http://thanet.gov.uk/supplierspend,Thanet District Council,02/06/2015,385518,770.00,,Gulliver'S Truck Hire Limited,GUL001,Operational Services,Revenue,Cont Hire & Operating Lease,Vehicle Management
http://thanet.gov.uk/supplierspend,Thanet District Council,02/06/2015,385906,7000.00,,H M Courts & Tribunal Service,HMC007,Operational Services,Revenue,Services,Government Agencies
http://thanet.gov.uk/supplierspend,Thanet District Council,02/06/2015,385411,274.91,,Haynes Of Maidstone Ltd,HAY008,Operational Services,Revenue,Direct Transport Costs,Vehicle Management
http://thanet.gov.uk/supplierspend,Thanet District Council,02/06/2015,385903,471.70,,Hem Des Llp,HEM007,Corporate Resources and S151,Balance Sheet,Investment Property For Lease,Consultancy
http://thanet.gov.uk/supplierspend,Thanet District Council,02/06/2015,385908,4869.30,,Heritage Lottery Fund,HER019,Community Services,Revenue,Grants & Subscriptions,Grants
http://thanet.gov.uk/supplierspend,Thanet District Council,02/06/2015,384784,1000.00,,Hqn Limited,HQN001,Corporate Resources and S151,Revenue,Training,Human Resources
http://thanet.gov.uk/supplierspend,Thanet District Council,02/06/2015,384542,1865.12,,Hr Go Recruitment Ltd,HRG002,Operational Services,Revenue,Agency Staff,Human Resources
http://thanet.gov.uk/supplierspend,Thanet District Council,02/06/2015,384543,4633.22,,Hr Go Recruitment Ltd,HRG002,Operational Services,Revenue,Agency Staff,Human Resources
http://thanet.gov.uk/supplierspend,Thanet District Council,02/06/2015,384550,8012.80,,Hr Go Recruitment Ltd,HRG002,Operational Services,Revenue,Agency Staff,Human Resources
http://thanet.gov.uk/supplierspend,Thanet District Council,02/06/2015,385358,676.22,,Hr Go Recruitment Ltd,HRG002,Operational Services,Revenue,Agency Staff,Human Resources
http://thanet.gov.uk/supplierspend,Thanet District Council,02/06/2015,385361,654.31,,Hr Go Recruitment Ltd,HRG002,Operational Services,Revenue,Agency Staff,Human Resources
http://thanet.gov.uk/supplierspend,Thanet District Council,02/06/2015,385362,1060.50,,Hr Go Recruitment Ltd,HRG002,Operational Services,Revenue,Agency Staff,Human Resources
http://thanet.gov.uk/supplierspend,Thanet District Council,02/06/2015,385363,1446.08,,Hr Go Recruitment Ltd,HRG002,Operational Services,Revenue,Agency Staff,Human Resources
http://thanet.gov.uk/supplierspend,Thanet District Council,02/06/2015,385395,221.26,,Hr Go Recruitment Ltd,HRG002,Community Services,Revenue,Agency Staff,Human Resources
http://thanet.gov.uk/supplierspend,Thanet District Council,02/06/2015,385501,263.12,,Hr Go Recruitment Ltd,HRG002,Community Services,Revenue,Agency Staff,Human Resources
http://thanet.gov.uk/supplierspend,Thanet District Council,02/06/2015,385502,598.56,,Hr Go Recruitment Ltd,HRG002,Operational Services,Revenue,Agency Staff,Human Resources
http://thanet.gov.uk/supplierspend,Thanet District Council,02/06/2015,385503,834.48,,Hr Go Recruitment Ltd,HRG002,Operational Services,Revenue,Agency Staff,Human Resources
http://thanet.gov.uk/supplierspend,Thanet District Council,02/06/2015,385504,386.75,,Hr Go Recruitment Ltd,HRG002,Community Services,Revenue,Agency Staff,Human Resources
http://thanet.gov.uk/supplierspend,Thanet District Council,02/06/2015,385506,724.50,,Hr Go Recruitment Ltd,HRG002,Operational Services,Revenue,Agency Staff,Human Resources
http://thanet.gov.uk/supplierspend,Thanet District Council,02/06/2015,385603,1738.55,,Hr Go Recruitment Ltd,HRG002,Operational Services,Revenue,Agency Staff,Human Resources
http://thanet.gov.uk/supplierspend,Thanet District Council,02/06/2015,385938,-625.20,,Hr Go Recruitment Ltd,HRG002,Operational Services,Revenue,Agency Staff,Human Resources
http://thanet.gov.uk/supplierspend,Thanet District Council,02/06/2015,385940,1661.51,,Hr Go Recruitment Ltd,HRG002,Operational Services,Revenue,Agency Staff,Human Resources
http://thanet.gov.uk/supplierspend,Thanet District Council,02/06/2015,385941,590.59,,Hr Go Recruitment Ltd,HRG002,Operational Services,Revenue,Agency Staff,Human Resources
http://thanet.gov.uk/supplierspend,Thanet District Council,02/06/2015,385942,860.20,,Hr Go Recruitment Ltd,HRG002,Operational Services,Revenue,Agency Staff,Human Resources
http://thanet.gov.uk/supplierspend,Thanet District Council,02/06/2015,385946,1396.50,,Hr Go Recruitment Ltd,HRG002,Operational Services,Revenue,Agency Staff,Human Resources
http://thanet.gov.uk/supplierspend,Thanet District Council,02/06/2015,385418,410.75,,Hydraulic & Engineering Servs Ltd,HYD011,Operational Services,Revenue,"Repairs,  Alter & Mtce - Build",Vehicle Management
http://thanet.gov.uk/supplierspend,Thanet District Council,02/06/2015,384973,226.68,,Hydraulic Hose Replacement Servs Ltd,HYD014,Operational Services,Revenue,Direct Transport Costs,Vehicle Management
http://thanet.gov.uk/supplierspend,Thanet District Council,02/06/2015,385304,292.02,,Hydraulic Hose Replacement Servs Ltd,HYD014,Operational Services,Revenue,Direct Transport Costs,Vehicle Management
http://thanet.gov.uk/supplierspend,Thanet District Council,02/06/2015,385305,746.65,,Hydraulic Hose Replacement Servs Ltd,HYD014,Operational Services,Revenue,Direct Transport Costs,Vehicle Management
http://thanet.gov.uk/supplierspend,Thanet District Council,02/06/2015,384384,720.00,,Isle Of Thanet Boxing Club,IOT003,Community Services,Revenue,Services,Arts And Leisure Services
http://thanet.gov.uk/supplierspend,Thanet District Council,02/06/2015,385283,4500.00,,J C White Geomatics Ltd,WHI019,Community Services,Revenue,Services,Consultancy
http://thanet.gov.uk/supplierspend,Thanet District Council,02/06/2015,385473,360.00,,J Redpath Buchanan & Co Ltd,RED001,Corporate Resources and S151,Balance Sheet,Repairs And Mtce Holding A/C,Building Construction Material
http://thanet.gov.uk/supplierspend,Thanet District Council,02/06/2015,385474,360.00,,J Redpath Buchanan & Co Ltd,RED001,Corporate Resources and S151,Balance Sheet,Repairs And Mtce Holding A/C,Building Construction Material
http://thanet.gov.uk/supplierspend,Thanet District Council,02/06/2015,385475,640.00,,J Redpath Buchanan & Co Ltd,RED001,Corporate Resources and S151,Balance Sheet,Repairs And Mtce Holding A/C,Building Construction Material
http://thanet.gov.uk/supplierspend,Thanet District Council,02/06/2015,385476,320.00,,J Redpath Buchanan & Co Ltd,RED001,Corporate Resources and S151,Balance Sheet,Repairs And Mtce Holding A/C,Building Construction Material
http://thanet.gov.uk/supplierspend,Thanet District Council,02/06/2015,385477,640.00,,J Redpath Buchanan & Co Ltd,RED001,Corporate Resources and S151,Balance Sheet,Repairs And Mtce Holding A/C,Building Construction Material
http://thanet.gov.uk/supplierspend,Thanet District Council,02/06/2015,385478,640.00,,J Redpath Buchanan & Co Ltd,RED001,Corporate Resources and S151,Balance Sheet,Repairs And Mtce Holding A/C,Building Construction Material
http://thanet.gov.uk/supplierspend,Thanet District Council,02/06/2015,385192,421.06,,J Rospo Building Contractors,ROS001,Operational Services,Revenue,"Repairs,  Alter & Mtce - Build",Construction-Repair And Maint
http://thanet.gov.uk/supplierspend,Thanet District Council,02/06/2015,385864,2200.00,,Jadu Limited,JAD003,East Kent Shared Services,Revenue,Communications & Computing,ICT
http://thanet.gov.uk/supplierspend,Thanet District Council,02/06/2015,384532,2100.00,,Jeremy Gardner Associates Limited,GAR022,Corporate Resources and S151,Balance Sheet,Investment Property For Lease,Consultancy
http://thanet.gov.uk/supplierspend,Thanet District Council,02/06/2015,385924,589.50,,John Gale,GAL001,Corporate Resources and S151,Balance Sheet,Capital Exp-Non Council Assets,Grants
http://thanet.gov.uk/supplierspend,Thanet District Council,02/06/2015,385926,572.40,,John Gale,GAL001,Corporate Resources and S151,Balance Sheet,Capital Exp-Non Council Assets,Grants
http://thanet.gov.uk/supplierspend,Thanet District Council,02/06/2015,385930,584.00,,John Gale,GAL001,Corporate Resources and S151,Balance Sheet,Capital Exp-Non Council Assets,Grants
http://thanet.gov.uk/supplierspend,Thanet District Council,02/06/2015,385932,1394.40,,John Gale,GAL001,Corporate Resources and S151,Balance Sheet,Capital Exp-Non Council Assets,Grants
http://thanet.gov.uk/supplierspend,Thanet District Council,02/06/2015,385935,829.20,,John Gale,GAL001,Corporate Resources and S151,Balance Sheet,Capital Exp-Non Council Assets,Grants
http://thanet.gov.uk/supplierspend,Thanet District Council,02/06/2015,385599,1500.00,,Jump It Recruitment Solutions Ltd,JUM001,East Kent Shared Services,Revenue,Agency Staff,Human Resources
http://thanet.gov.uk/supplierspend,Thanet District Council,02/06/2015,385600,1200.00,,Jump It Recruitment Solutions Ltd,JUM001,East Kent Shared Services,Revenue,Agency Staff,Human Resources
http://thanet.gov.uk/supplierspend,Thanet District Council,02/06/2015,385508,3822.00,,Kent County Council,KCC002,Community Services,Revenue,Services,Various Cats-Public Sector
http://thanet.gov.uk/supplierspend,Thanet District Council,02/06/2015,385194,5708.65,,Kent County Council (Kcs),KCC003,Community Services,Revenue,Energy Costs,Facilities And Mangement Serv
http://thanet.gov.uk/supplierspend,Thanet District Council,02/06/2015,385195,7102.10,,Kent County Council (Kcs),KCC003,Operational Services,Revenue,Energy Costs,Facilities And Mangement Serv
http://thanet.gov.uk/supplierspend,Thanet District Council,02/06/2015,385196,2657.31,,Kent County Council (Kcs),KCC003,Operational Services,Revenue,Energy Costs,Facilities And Mangement Serv
http://thanet.gov.uk/supplierspend,Thanet District Council,02/06/2015,385480,3754.59,,Kent County Council (Kcs),KCC003,Community Services,Revenue,"Equip, Furniture And Materials",Facilities And Mangement Serv
http://thanet.gov.uk/supplierspend,Thanet District Council,02/06/2015,385480,988.05,,Kent County Council (Kcs),KCC003,Operational Services,Revenue,"Equip, Furniture And Materials",Facilities And Mangement Serv
http://thanet.gov.uk/supplierspend,Thanet District Council,02/06/2015,385480,197.61,,Kent County Council (Kcs),KCC003,East Kent Shared Services,Revenue,"Equip, Furniture And Materials",Facilities And Mangement Serv
http://thanet.gov.uk/supplierspend,Thanet District Council,02/06/2015,385928,3210.00,,Kings Home Improvements,KIN023,Corporate Resources and S151,Balance Sheet,Capital Exp-Non Council Assets,Grants
http://thanet.gov.uk/supplierspend,Thanet District Council,02/06/2015,385406,11782.00,,Lister Wilder Limited,LIS002,Operational Services,Revenue,"Equip, Furniture And Materials",Horticultural
http://thanet.gov.uk/supplierspend,Thanet District Council,02/06/2015,385190,1456.38,,Lobster Van Hire Ltd,LOB001,Operational Services,Revenue,Cont Hire & Operating Lease,Vehicle Management
http://thanet.gov.uk/supplierspend,Thanet District Council,02/06/2015,384963,118.78,,Lyreco Uk Limited,LYR001,Corporate Resources and S151,Revenue,"Print, Stat And Gen Off Exps",Stationery
http://thanet.gov.uk/supplierspend,Thanet District Council,02/06/2015,384963,498.94,,Lyreco Uk Limited,LYR001,Operational Services,Revenue,"Print, Stat And Gen Off Exps",Stationery
http://thanet.gov.uk/supplierspend,Thanet District Council,02/06/2015,384963,54.49,,Lyreco Uk Limited,LYR001,East Kent Shared Services,Revenue,"Print, Stat And Gen Off Exps",Stationery
http://thanet.gov.uk/supplierspend,Thanet District Council,02/06/2015,385344,400.56,,Lyreco Uk Limited,LYR001,Community Services,Revenue,"Print, Stat And Gen Off Exps",Stationery
http://thanet.gov.uk/supplierspend,Thanet District Council,02/06/2015,384929,420.00,,Margate Bowling Club,MBO001,Corporate Resources and S151,Revenue,Rents,Facilities And Mangement Serv
http://thanet.gov.uk/supplierspend,Thanet District Council,02/06/2015,384775,5850.00,,Margate Town Team Cic,MTO001,Community Services,Revenue,"Equip, Furniture And Materials",Grants
http://thanet.gov.uk/supplierspend,Thanet District Council,02/06/2015,384863,415.27,,Mears Ltd,MEA003,Operational Services,Revenue,"Repairs,  Alter & Mtce - Build",Construction-Repair And Maint
http://thanet.gov.uk/supplierspend,Thanet District Council,02/06/2015,384955,603.79,,Mears Ltd,MEA003,Operational Services,Revenue,"Repairs,  Alter & Mtce - Build",Construction-Repair And Maint
http://thanet.gov.uk/supplierspend,Thanet District Council,02/06/2015,384956,285.12,,Mears Ltd,MEA003,Operational Services,Revenue,"Repairs,  Alter & Mtce - Build",Construction-Repair And Maint
http://thanet.gov.uk/supplierspend,Thanet District Council,02/06/2015,385861,807.54,,Mears Ltd,MEA003,Operational Services,Revenue,"Repairs,  Alter & Mtce - Build",Construction-Repair And Maint
http://thanet.gov.uk/supplierspend,Thanet District Council,02/06/2015,385863,653.08,,Mears Ltd,MEA003,Operational Services,Revenue,"Repairs,  Alter & Mtce - Build",Construction-Repair And Maint
http://thanet.gov.uk/supplierspend,Thanet District Council,02/06/2015,385493,1440.00,,Michael Page Int Recruitment Ltd,PAG008,Corporate Resources and S151,Revenue,Services,Human Resources
http://thanet.gov.uk/supplierspend,Thanet District Council,02/06/2015,385469,2969.91,,Midland Software Limited,MID013,Corporate Resources and S151,Balance Sheet,Plant And Equipment,ICT
http://thanet.gov.uk/supplierspend,Thanet District Council,02/06/2015,385902,10441.14,,Midland Software Limited,MID013,Corporate Resources and S151,Balance Sheet,Plant And Equipment,ICT
http://thanet.gov.uk/supplierspend,Thanet District Council,02/06/2015,384316,7480.00,,Milmer Consulting Limited,MIL046,Operational Services,Revenue,Services,Environmental Services
http://thanet.gov.uk/supplierspend,Thanet District Council,02/06/2015,384907,432.19,,Morgan Jones Ltd,MOR001,Chief Executive,Revenue,Agency Staff,Human Resources
http://thanet.gov.uk/supplierspend,Thanet District Council,02/06/2015,385350,699.30,,Morgan Jones Ltd,MOR001,Community Services,Revenue,Services,Human Resources
http://thanet.gov.uk/supplierspend,Thanet District Council,02/06/2015,385900,300.00,,Mr Dean Thistle,THI007,East Kent Shared Services,Revenue,Services,Legal Services
http://thanet.gov.uk/supplierspend,Thanet District Council,02/06/2015,384755,1340.00,,Mr Philip Woolfe,WOO030,Operational Services,Revenue,Services,Legal Services
http://thanet.gov.uk/supplierspend,Thanet District Council,02/06/2015,385510,280.00,,N K F Seymour Electrical Cont,SEY002,Community Services,Revenue,Services,Building Construction Material
http://thanet.gov.uk/supplierspend,Thanet District Council,02/06/2015,385507,525.00,,Ncc Services Ltd,NCC003,East Kent Shared Services,Revenue,Communications & Computing,ICT
http://thanet.gov.uk/supplierspend,Thanet District Council,02/06/2015,385318,5280.00,,New Approach Contractors Ltd,NEW037,Operational Services,Revenue,"Repairs,  Alter & Mtce - Build",Construction-Repair And Maint
http://thanet.gov.uk/supplierspend,Thanet District Council,02/06/2015,385467,10660.00,,Nouveau Solutions Ltd,NOU001,East Kent Shared Services,Revenue,Communications & Computing,ICT
http://thanet.gov.uk/supplierspend,Thanet District Council,02/06/2015,385740,517.21,,Ocs Group Uk Ltd T/A Fountains,OCS005,Operational Services,Revenue,Fixtures & Fittings,Cleaning And Janitorial
http://thanet.gov.uk/supplierspend,Thanet District Council,02/06/2015,385846,17698.16,,Ocs Group Uk Ltd T/A Fountains,OCS005,Operational Services,Revenue,Cleaning & Domestic Supplies,Cleaning And Janitorial
http://thanet.gov.uk/supplierspend,Thanet District Council,02/06/2015,385303,1925.00,,P Lawrence & Son,LAW001,Community Services,Revenue,Services,Construction-Repair And Maint
http://thanet.gov.uk/supplierspend,Thanet District Council,02/06/2015,385937,500.00,,Ramsgate Town Team,RAM041,Community Services,Revenue,Grants & Subscriptions,Grants
http://thanet.gov.uk/supplierspend,Thanet District Council,02/06/2015,385597,3441.44,,Royal Mail,ROY004,Community Services,Revenue,Communications & Computing,Mail Services
http://thanet.gov.uk/supplierspend,Thanet District Council,02/06/2015,385317,2280.55,,S W Flooring (South East) Limited,SWF002,Community Services,Revenue,Fixtures & Fittings,Building Construction Material
http://thanet.gov.uk/supplierspend,Thanet District Council,02/06/2015,385261,510.84,,Sba Ltd,SBA001,Operational Services,Revenue,"Clothes, Uniforms & Laundry",Clothing
http://thanet.gov.uk/supplierspend,Thanet District Council,02/06/2015,385183,900.00,,Sellick Partnership Ltd,SEL011,Community Services,Revenue,Services,Human Resources
http://thanet.gov.uk/supplierspend,Thanet District Council,02/06/2015,385341,900.00,,Sellick Partnership Ltd,SEL011,Community Services,Revenue,Services,Human Resources
http://thanet.gov.uk/supplierspend,Thanet District Council,02/06/2015,385904,660.00,,Sharpe Pritchard Llp,SHA030,Corporate Resources and S151,Balance Sheet,Other Land And Buildings-Hra,Legal Services
http://thanet.gov.uk/supplierspend,Thanet District Council,02/06/2015,385517,1400.00,,Sjr Pm Solutions Limited,SJR001,East Kent Shared Services,Revenue,Services,ICT
http://thanet.gov.uk/supplierspend,Thanet District Council,02/06/2015,384360,320.00,,Sl Environmental Limited,SLE002,Community Services,Revenue,"Equip, Furniture And Materials",Environmental Services
http://thanet.gov.uk/supplierspend,Thanet District Council,02/06/2015,385925,5895.00,,South East Building Company Limited,SEB001,Corporate Resources and S151,Balance Sheet,Capital Exp-Non Council Assets,Grants
http://thanet.gov.uk/supplierspend,Thanet District Council,02/06/2015,385927,4770.00,,South East Building Company Limited,SEB001,Corporate Resources and S151,Balance Sheet,Capital Exp-Non Council Assets,Grants
http://thanet.gov.uk/supplierspend,Thanet District Council,02/06/2015,385931,6640.00,,South East Building Company Limited,SEB001,Corporate Resources and S151,Balance Sheet,Capital Exp-Non Council Assets,Grants
http://thanet.gov.uk/supplierspend,Thanet District Council,02/06/2015,385934,6820.00,,South East Building Company Limited,SEB001,Corporate Resources and S151,Balance Sheet,Capital Exp-Non Council Assets,Grants
http://thanet.gov.uk/supplierspend,Thanet District Council,02/06/2015,385221,293.84,,Southern Electric,SEL007,Operational Services,Revenue,Energy Costs,Utilities
http://thanet.gov.uk/supplierspend,Thanet District Council,02/06/2015,385236,1793.58,,Southern Electric,SEL007,Operational Services,Revenue,Energy Costs,Utilities
http://thanet.gov.uk/supplierspend,Thanet District Council,02/06/2015,385453,395.93,,Southern Water,SWA001,Operational Services,Revenue,Water Services,Utilities
http://thanet.gov.uk/supplierspend,Thanet District Council,02/06/2015,384330,8500.00,,Spider Project Management Ltd,SPI009,Corporate Resources and S151,Balance Sheet,Investment Property For Lease,Consultancy
http://thanet.gov.uk/supplierspend,Thanet District Council,02/06/2015,384331,550.00,,Spider Project Management Ltd,SPI009,Corporate Resources and S151,Balance Sheet,Investment Property For Lease,Consultancy
http://thanet.gov.uk/supplierspend,Thanet District Council,02/06/2015,385519,400.00,,Stacey Music Systems,STA047,Operational Services,Revenue,"Equip, Furniture And Materials",Cemetery And Crematorium
http://thanet.gov.uk/supplierspend,Thanet District Council,02/06/2015,385519,150.00,,Stacey Music Systems,STA047,Operational Services,Revenue,Fixtures & Fittings,Cemetery And Crematorium
http://thanet.gov.uk/supplierspend,Thanet District Council,02/06/2015,385270,490.00,,Stagecoach Services Limited,STA023,Corporate Resources and S151,Balance Sheet,Staff Bus Permits Holding A/C,Public Transport
http://thanet.gov.uk/supplierspend,Thanet District Council,02/06/2015,386102,18460.63,,Standage & Co Limited,STA058,Corporate Resources and S151,Balance Sheet,Council Dwellings,Construction-Repair And Maint
http://thanet.gov.uk/supplierspend,Thanet District Council,02/06/2015,386103,33881.75,,Standage & Co Limited,STA058,Corporate Resources and S151,Balance Sheet,Council Dwellings,Construction-Repair And Maint
http://thanet.gov.uk/supplierspend,Thanet District Council,02/06/2015,385520,250.00,,Ten Alps Communications Ltd,TEN003,Operational Services,Revenue,Miscellaneous Expenses,Facilities And Mangement Serv
http://thanet.gov.uk/supplierspend,Thanet District Council,02/06/2015,385180,1551.04,,Tfa Fuel Services Ltd,TFA003,Operational Services,Revenue,"Equip, Furniture And Materials",Utilities
http://thanet.gov.uk/supplierspend,Thanet District Council,02/06/2015,385273,65.89,,Tfa Fuel Services Ltd,TFA003,Operational Services,Revenue,Direct Transport Costs,Utilities
http://thanet.gov.uk/supplierspend,Thanet District Council,02/06/2015,385273,1748.62,,Tfa Fuel Services Ltd,TFA003,Operational Services,Revenue,"Equip, Furniture And Materials",Utilities
http://thanet.gov.uk/supplierspend,Thanet District Council,02/06/2015,385415,366.00,,The Bell Brush Company,BEL018,Operational Services,Revenue,"Equip, Furniture And Materials",Cleaning And Janitorial
http://thanet.gov.uk/supplierspend,Thanet District Council,02/06/2015,384724,1562.49,,The Glenwood Hotel,GLE007,Community Services,Revenue,Services,Housing Management
http://thanet.gov.uk/supplierspend,Thanet District Council,02/06/2015,385204,2829.14,,The Glenwood Hotel,GLE007,Community Services,Revenue,Services,Housing Management
http://thanet.gov.uk/supplierspend,Thanet District Council,02/06/2015,385215,2974.98,,The Glenwood Hotel,GLE007,Community Services,Revenue,Services,Housing Management
http://thanet.gov.uk/supplierspend,Thanet District Council,02/06/2015,385374,2579.14,,The Glenwood Hotel,GLE007,Community Services,Revenue,Services,Housing Management
http://thanet.gov.uk/supplierspend,Thanet District Council,02/06/2015,385364,6808.00,,The Pipeline,PIP002,Community Services,Revenue,"Repairs,  Alter & Mtce - Build",Various Categories
http://thanet.gov.uk/supplierspend,Thanet District Council,02/06/2015,385018,400.00,,Think Publishing Limited,THI011,Operational Services,Revenue,Miscellaneous Expenses,Facilities And Mangement Serv
http://thanet.gov.uk/supplierspend,Thanet District Council,02/06/2015,385936,6937.00,,Trueden Disability Adaptations Ltd,TRU012,Corporate Resources and S151,Balance Sheet,Capital Exp-Non Council Assets,Grants
http://thanet.gov.uk/supplierspend,Thanet District Council,02/06/2015,385533,510.68,,Tudor Owen Plant Services,TUD004,Operational Services,Revenue,Direct Transport Costs,Vehicle Management
http://thanet.gov.uk/supplierspend,Thanet District Council,02/06/2015,385346,10000.00,,Tunbridge Wells Borough Council,TUN002,East Kent Shared Services,Revenue,Services,Various Cats-Public Sector
http://thanet.gov.uk/supplierspend,Thanet District Council,02/06/2015,384909,322.68,,Veolia Es (Uk) Ltd,VEO001,Operational Services,Revenue,Cleaning & Domestic Supplies,Environmental Services
http://thanet.gov.uk/supplierspend,Thanet District Council,02/06/2015,384910,161.34,,Veolia Es (Uk) Ltd,VEO001,Corporate Resources and S151,Balance Sheet,Rechargeable Works,Environmental Services
http://thanet.gov.uk/supplierspend,Thanet District Council,02/06/2015,384910,2300.77,,Veolia Es (Uk) Ltd,VEO001,Operational Services,Revenue,Cleaning & Domestic Supplies,Environmental Services
http://thanet.gov.uk/supplierspend,Thanet District Council,02/06/2015,385512,1710.00,,Watling Tyre Service Ltd,WAT003,Operational Services,Revenue,"Repairs,  Alter & Mtce - Build",Vehicle Management
http://thanet.gov.uk/supplierspend,Thanet District Council,02/06/2015,385193,823.50,,Wise Handling Limited,WIS001,Operational Services,Revenue,"Repairs,  Alter & Mtce - Build",Maritime Services
http://thanet.gov.uk/supplierspend,Thanet District Council,02/06/2015,384969,3122.50,,Your Leisure Kent Limited,YOU016,Corporate Resources and S151,Revenue,Rents,Arts And Leisure Services
http://thanet.gov.uk/supplierspend,Thanet District Council,09/06/2015,385380,20000.00,,Adrian Fisher Design Limited,ADR001,Corporate Resources and S151,Balance Sheet,Other Land And Buildings-Hra,Arts And Leisure Services
http://thanet.gov.uk/supplierspend,Thanet District Council,09/06/2015,386049,615.90,,Advanced Business Solutions,COA011,Corporate Resources and S151,Revenue,Communications & Computing,ICT
http://thanet.gov.uk/supplierspend,Thanet District Council,09/06/2015,385865,13085.22,,Albion Fencing&Construction Kent Ltd,ALB005,Corporate Resources and S151,Balance Sheet,Other Land And Buildings-Hra,Building Construction Material
http://thanet.gov.uk/supplierspend,Thanet District Council,09/06/2015,386020,4200.40,,Aligned Assets Ltd,ALI002,East Kent Shared Services,Revenue,Communications & Computing,ICT
http://thanet.gov.uk/supplierspend,Thanet District Council,09/06/2015,386021,763.02,,Allstar Business Solutions Ltd,ALL038,Operational Services,Revenue,Direct Transport Costs,Vehicle Management
http://thanet.gov.uk/supplierspend,Thanet District Council,09/06/2015,386520,681.80,,Allstar Business Solutions Ltd,ALL038,Operational Services,Revenue,Direct Transport Costs,Vehicle Management
http://thanet.gov.uk/supplierspend,Thanet District Council,09/06/2015,385609,945.00,,Amenity Horticultural Serv Ltd,AME001,Operational Services,Revenue,"Equip, Furniture And Materials",Horticultural
http://thanet.gov.uk/supplierspend,Thanet District Council,09/06/2015,384776,366.00,,Ass Of Electoral Administrators,AEA001,Corporate Resources and S151,Revenue,Expenses,Human Resources
http://thanet.gov.uk/supplierspend,Thanet District Council,09/06/2015,384892,18362.20,,Ass Of Electoral Administrators,AEA001,Corporate Resources and S151,Revenue,Services,Human Resources
http://thanet.gov.uk/supplierspend,Thanet District Council,09/06/2015,386533,17300.00,,Bramling Construction Ltd,BRA020,Corporate Resources and S151,Balance Sheet,Capital Exp-Non Council Assets,Grants
http://thanet.gov.uk/supplierspend,Thanet District Council,09/06/2015,385332,1889.78,,Canterbury Christ Church University,CAN006,Community Services,Revenue,Energy Costs,Various Categories
http://thanet.gov.uk/supplierspend,Thanet District Council,09/06/2015,386541,4140.14,,Canterbury Christ Church University,CAN006,Community Services,Revenue,Energy Costs,Various Categories
http://thanet.gov.uk/supplierspend,Thanet District Council,09/06/2015,385957,1600.00,,Canterbury Scaffolding,CAN023,Corporate Resources and S151,Balance Sheet,Council Dwellings,Construction-Repair And Maint
http://thanet.gov.uk/supplierspend,Thanet District Council,09/06/2015,385515,2421.21,,Casement Signs And Traffic,CAS001,Operational Services,Revenue,"Repairs,  Alter & Mtce - Build",Street And Traffic Management
http://thanet.gov.uk/supplierspend,Thanet District Council,09/06/2015,385516,364.80,,Casement Signs And Traffic,CAS001,Operational Services,Revenue,"Repairs,  Alter & Mtce - Build",Street And Traffic Management
http://thanet.gov.uk/supplierspend,Thanet District Council,09/06/2015,386009,410.76,,Channel Commercials Plc,CCO001,Operational Services,Revenue,Direct Transport Costs,Vehicle Management
http://thanet.gov.uk/supplierspend,Thanet District Council,09/06/2015,386010,335.45,,Channel Commercials Plc,CCO001,Operational Services,Revenue,Direct Transport Costs,Vehicle Management
http://thanet.gov.uk/supplierspend,Thanet District Council,09/06/2015,386267,4000.00,,Colliers Int Prop Advisors Uk Llp,COL033,Corporate Resources and S151,Balance Sheet,Other Land And Buildings-Hra,Legal Services
http://thanet.gov.uk/supplierspend,Thanet District Council,09/06/2015,385971,314.37,,Computerland Uk Limited,COM045,East Kent Shared Services,Revenue,Communications & Computing,ICT
http://thanet.gov.uk/supplierspend,Thanet District Council,09/06/2015,385972,2200.59,,Computerland Uk Limited,COM045,East Kent Shared Services,Revenue,Communications & Computing,ICT
http://thanet.gov.uk/supplierspend,Thanet District Council,09/06/2015,385973,314.37,,Computerland Uk Limited,COM045,East Kent Shared Services,Revenue,Communications & Computing,ICT
http://thanet.gov.uk/supplierspend,Thanet District Council,09/06/2015,385468,112968.11,,Dover District Council,DOV001,Corporate Resources and S151,Revenue,Services,Various Cats-Public Sector
http://thanet.gov.uk/supplierspend,Thanet District Council,09/06/2015,386306,6321.00,,Dover District Council,DOV001,Community Services,Revenue,Grants & Subscriptions,Various Cats-Public Sector
http://thanet.gov.uk/supplierspend,Thanet District Council,09/06/2015,386306,4220.08,,Dover District Council,DOV001,Community Services,Revenue,Miscellaneous Expenses,Various Cats-Public Sector
http://thanet.gov.uk/supplierspend,Thanet District Council,09/06/2015,385858,950.00,,Eagle Security Alarms Ltd,EAG005,Operational Services,Revenue,"Repairs,  Alter & Mtce - Build",Facilities And Mangement Serv
http://thanet.gov.uk/supplierspend,Thanet District Council,09/06/2015,386052,993.56,,East Kent Components Ltd,EKC006,Operational Services,Revenue,Direct Transport Costs,Vehicle Management
http://thanet.gov.uk/supplierspend,Thanet District Council,09/06/2015,386054,320.00,,East Kent Components Ltd,EKC006,Operational Services,Revenue,Direct Transport Costs,Vehicle Management
http://thanet.gov.uk/supplierspend,Thanet District Council,09/06/2015,386060,395.00,,East Kent Components Ltd,EKC006,Operational Services,Revenue,Direct Transport Costs,Vehicle Management
http://thanet.gov.uk/supplierspend,Thanet District Council,09/06/2015,385949,323355.28,,East Kent Housing Ltd,EKH002,Community Services,Revenue,Other Agencies,Housing Management
http://thanet.gov.uk/supplierspend,Thanet District Council,09/06/2015,385407,4952.60,,Egbert H Taylor & Company Ltd,TAY005,Operational Services,Revenue,"Equip, Furniture And Materials",Environmental Services
http://thanet.gov.uk/supplierspend,Thanet District Council,09/06/2015,385791,3075.00,,Elmstok Ltd,ELM004,Community Services,Revenue,"Equip, Furniture And Materials",Facilities And Mangement Serv
http://thanet.gov.uk/supplierspend,Thanet District Council,09/06/2015,386441,13450.00,,Enterprise (Aol) Limited,ENT011,Operational Services,Revenue,Cleaning & Domestic Supplies,Horticultural
http://thanet.gov.uk/supplierspend,Thanet District Council,09/06/2015,385819,481.64,,Evergreen Landscaping Gardening Ltd,EVE004,Community Services,Revenue,Grounds Mtce Costs,Horticultural
http://thanet.gov.uk/supplierspend,Thanet District Council,09/06/2015,385339,468.20,,Eyeball Signs,EYE002,Operational Services,Revenue,"Equip, Furniture And Materials",Facilities And Mangement Serv
http://thanet.gov.uk/supplierspend,Thanet District Council,09/06/2015,385202,298.22,,Fuel Oils Kent,FUE001,Operational Services,Revenue,"Equip, Furniture And Materials",Utilities
http://thanet.gov.uk/supplierspend,Thanet District Council,09/06/2015,386539,920.00,,Geoff Oliver & Associates Ltd,OLI001,Community Services,Revenue,Services,Consultancy
http://thanet.gov.uk/supplierspend,Thanet District Council,09/06/2015,386540,920.00,,Geoff Oliver & Associates Ltd,OLI001,Community Services,Revenue,Services,Consultancy
http://thanet.gov.uk/supplierspend,Thanet District Council,09/06/2015,386289,22730.00,,Godfreys (Sevenoaks) Limited,GOD009,Operational Services,Revenue,"Equip, Furniture And Materials",Construction-Repair And Maint
http://thanet.gov.uk/supplierspend,Thanet District Council,09/06/2015,385787,281.16,,Greenham,GRE001,Operational Services,Revenue,"Clothes, Uniforms & Laundry",Clothing
http://thanet.gov.uk/supplierspend,Thanet District Council,09/06/2015,386001,770.00,,Gulliver'S Truck Hire Limited,GUL001,Operational Services,Revenue,Cont Hire & Operating Lease,Vehicle Management
http://thanet.gov.uk/supplierspend,Thanet District Council,09/06/2015,385470,650.00,,Hi Way Services Ltd,HIW002,Operational Services,Revenue,"Repairs,  Alter & Mtce - Build",Highway Equipment And Material
http://thanet.gov.uk/supplierspend,Thanet District Council,09/06/2015,385360,4192.47,,Hr Go Recruitment Ltd,HRG002,Operational Services,Revenue,Agency Staff,Human Resources
http://thanet.gov.uk/supplierspend,Thanet District Council,09/06/2015,385505,3431.99,,Hr Go Recruitment Ltd,HRG002,Operational Services,Revenue,Agency Staff,Human Resources
http://thanet.gov.uk/supplierspend,Thanet District Council,09/06/2015,385939,287.04,,Hr Go Recruitment Ltd,HRG002,Community Services,Revenue,Agency Staff,Human Resources
http://thanet.gov.uk/supplierspend,Thanet District Council,09/06/2015,385271,1764.30,,Keltic Ltd,KEL007,Operational Services,Revenue,"Clothes, Uniforms & Laundry",Clothing
http://thanet.gov.uk/supplierspend,Thanet District Council,09/06/2015,385457,376.66,,Kent County Council (Kcs),KCC003,Operational Services,Revenue,"Equip, Furniture And Materials",Facilities And Mangement Serv
http://thanet.gov.uk/supplierspend,Thanet District Council,09/06/2015,386294,400.00,,Km Media Group Limited,KMM001,Corporate Resources and S151,Revenue,Miscellaneous Expenses,Facilities And Mangement Serv
http://thanet.gov.uk/supplierspend,Thanet District Council,09/06/2015,386295,400.00,,Km Media Group Limited,KMM001,Corporate Resources and S151,Revenue,Miscellaneous Expenses,Facilities And Mangement Serv
http://thanet.gov.uk/supplierspend,Thanet District Council,09/06/2015,386532,215.00,,L G G Limited,LGG001,Corporate Resources and S151,Revenue,Expenses,Human Resources
http://thanet.gov.uk/supplierspend,Thanet District Council,09/06/2015,386538,430.00,,L G G Limited,LGG001,Corporate Resources and S151,Revenue,Expenses,Human Resources
http://thanet.gov.uk/supplierspend,Thanet District Council,09/06/2015,385399,1642.00,,L W Burt & Son Ltd,BUR027,Community Services,Revenue,"Repairs,  Alter & Mtce - Build",Construction-Repair And Maint
http://thanet.gov.uk/supplierspend,Thanet District Council,09/06/2015,385400,417.96,,L W Burt & Son Ltd,BUR027,Community Services,Revenue,"Repairs,  Alter & Mtce - Build",Construction-Repair And Maint
http://thanet.gov.uk/supplierspend,Thanet District Council,09/06/2015,385401,454.71,,L W Burt & Son Ltd,BUR027,Community Services,Revenue,"Repairs,  Alter & Mtce - Build",Construction-Repair And Maint
http://thanet.gov.uk/supplierspend,Thanet District Council,09/06/2015,385402,307.65,,L W Burt & Son Ltd,BUR027,Community Services,Revenue,"Repairs,  Alter & Mtce - Build",Construction-Repair And Maint
http://thanet.gov.uk/supplierspend,Thanet District Council,09/06/2015,385403,552.70,,L W Burt & Son Ltd,BUR027,Community Services,Revenue,"Repairs,  Alter & Mtce - Build",Construction-Repair And Maint
http://thanet.gov.uk/supplierspend,Thanet District Council,09/06/2015,385404,1030.71,,L W Burt & Son Ltd,BUR027,Community Services,Revenue,"Repairs,  Alter & Mtce - Build",Construction-Repair And Maint
http://thanet.gov.uk/supplierspend,Thanet District Council,09/06/2015,385388,292.03,,Lister Wilder Limited,LIS002,Operational Services,Revenue,"Equip, Furniture And Materials",Horticultural
http://thanet.gov.uk/supplierspend,Thanet District Council,09/06/2015,385408,321.35,,Lister Wilder Limited,LIS002,Operational Services,Revenue,"Equip, Furniture And Materials",Horticultural
http://thanet.gov.uk/supplierspend,Thanet District Council,09/06/2015,385393,559.32,,Loomis Uk Ltd,LOO002,Operational Services,Revenue,Services,Financial Services
http://thanet.gov.uk/supplierspend,Thanet District Council,09/06/2015,385342,28.70,,Lyreco Uk Limited,LYR001,Corporate Resources and S151,Revenue,"Print, Stat And Gen Off Exps",Stationery
http://thanet.gov.uk/supplierspend,Thanet District Council,09/06/2015,385342,193.56,,Lyreco Uk Limited,LYR001,Operational Services,Revenue,"Equip, Furniture And Materials",Stationery
http://thanet.gov.uk/supplierspend,Thanet District Council,09/06/2015,385875,399.40,,Lyreco Uk Limited,LYR001,Community Services,Revenue,"Print, Stat And Gen Off Exps",Stationery
http://thanet.gov.uk/supplierspend,Thanet District Council,09/06/2015,385356,779.88,,Machine Mart Ltd,MAC003,Operational Services,Revenue,"Equip, Furniture And Materials",Vehicle Management
http://thanet.gov.uk/supplierspend,Thanet District Council,09/06/2015,385964,228.06,,Mears Ltd,MEA003,Operational Services,Revenue,"Repairs,  Alter & Mtce - Build",Construction-Repair And Maint
http://thanet.gov.uk/supplierspend,Thanet District Council,09/06/2015,385974,467.71,,Mears Ltd,MEA003,Operational Services,Revenue,"Repairs,  Alter & Mtce - Build",Construction-Repair And Maint
http://thanet.gov.uk/supplierspend,Thanet District Council,09/06/2015,385976,351.83,,Mears Ltd,MEA003,Operational Services,Revenue,"Repairs,  Alter & Mtce - Build",Construction-Repair And Maint
http://thanet.gov.uk/supplierspend,Thanet District Council,09/06/2015,385977,467.99,,Mears Ltd,MEA003,Operational Services,Revenue,"Repairs,  Alter & Mtce - Build",Construction-Repair And Maint
http://thanet.gov.uk/supplierspend,Thanet District Council,09/06/2015,385982,101199.36,,Mears Ltd,MEA003,Community Services,Revenue,"Repairs,  Alter & Mtce - Build",Construction-Repair And Maint
http://thanet.gov.uk/supplierspend,Thanet District Council,09/06/2015,385983,2065.39,,Mears Ltd,MEA003,Community Services,Revenue,"Repairs,  Alter & Mtce - Build",Construction-Repair And Maint
http://thanet.gov.uk/supplierspend,Thanet District Council,09/06/2015,385984,1973.65,,Mears Ltd,MEA003,Community Services,Revenue,"Repairs,  Alter & Mtce - Build",Construction-Repair And Maint
http://thanet.gov.uk/supplierspend,Thanet District Council,09/06/2015,385986,416.28,,Mears Ltd,MEA003,Community Services,Revenue,"Repairs,  Alter & Mtce - Build",Construction-Repair And Maint
http://thanet.gov.uk/supplierspend,Thanet District Council,09/06/2015,385986,902.54,,Mears Ltd,MEA003,Operational Services,Revenue,"Repairs,  Alter & Mtce - Build",Construction-Repair And Maint
http://thanet.gov.uk/supplierspend,Thanet District Council,09/06/2015,386324,2119.81,,Mears Ltd,MEA003,Community Services,Revenue,"Repairs,  Alter & Mtce - Build",Construction-Repair And Maint
http://thanet.gov.uk/supplierspend,Thanet District Council,09/06/2015,386283,1044.00,,Michael Page Int Recruitment Ltd,PAG008,Corporate Resources and S151,Revenue,Services,Human Resources
http://thanet.gov.uk/supplierspend,Thanet District Council,09/06/2015,385461,51077.31,,Molyneux Rose Ltd Cl Acc-I/S M'Gate,MOL002,Operational Services,Revenue,Rents,Financial Services
http://thanet.gov.uk/supplierspend,Thanet District Council,09/06/2015,385462,42559.75,,Molyneux Rose Ltd Cl Acc-I/S R'Gate,MOL003,Operational Services,Revenue,Rents,Facilities And Mangement Serv
http://thanet.gov.uk/supplierspend,Thanet District Council,09/06/2015,386018,5468.06,,National Express Ltd,NAT010,Community Services,Revenue,Services,Agency Payments
http://thanet.gov.uk/supplierspend,Thanet District Council,09/06/2015,386531,428.40,,Neopost Ltd,NEO003,Community Services,Revenue,"Equip, Furniture And Materials",Mail Services
http://thanet.gov.uk/supplierspend,Thanet District Council,09/06/2015,386530,3000.00,,Neopost Ltd Credifon,NEO002,Community Services,Revenue,Communications & Computing,Mail Services
http://thanet.gov.uk/supplierspend,Thanet District Council,09/06/2015,386002,210.00,,Ocs Group Uk Ltd T/A Cannon,OCS003,Operational Services,Revenue,"Repairs,  Alter & Mtce - Build",Cleaning And Janitorial
http://thanet.gov.uk/supplierspend,Thanet District Council,09/06/2015,385741,506.39,,Ocs Group Uk Ltd T/A Fountains,OCS005,Operational Services,Revenue,Fixtures & Fittings,Cleaning And Janitorial
http://thanet.gov.uk/supplierspend,Thanet District Council,09/06/2015,385742,686.53,,Ocs Group Uk Ltd T/A Fountains,OCS005,Operational Services,Revenue,Fixtures & Fittings,Cleaning And Janitorial
http://thanet.gov.uk/supplierspend,Thanet District Council,09/06/2015,384903,297.64,,Orbis Protect Limited,ORB009,Community Services,Revenue,Services,Facilities And Mangement Serv
http://thanet.gov.uk/supplierspend,Thanet District Council,09/06/2015,386518,5000.00,,Outset (Uk) Ltd,OUT004,Chief Executive,Revenue,Services,Legal Services
http://thanet.gov.uk/supplierspend,Thanet District Council,09/06/2015,385836,375.00,,P R Bolder,BOL004,Operational Services,Revenue,"Repairs,  Alter & Mtce - Build",Construction-Repair And Maint
http://thanet.gov.uk/supplierspend,Thanet District Council,09/06/2015,385601,849.00,,Parkeon Limited,PAR063,Operational Services,Revenue,"Equip, Furniture And Materials",Street And Traffic Management
http://thanet.gov.uk/supplierspend,Thanet District Council,09/06/2015,385789,90.00,,Parkeon Limited,PAR063,Community Services,Revenue,"Equip, Furniture And Materials",Street And Traffic Management
http://thanet.gov.uk/supplierspend,Thanet District Council,09/06/2015,385789,360.00,,Parkeon Limited,PAR063,Operational Services,Revenue,"Equip, Furniture And Materials",Street And Traffic Management
http://thanet.gov.uk/supplierspend,Thanet District Council,09/06/2015,386075,970.65,,Portakabin Ltd,POR001,Operational Services,Revenue,"Repairs,  Alter & Mtce - Build",Facilities And Mangement Serv
http://thanet.gov.uk/supplierspend,Thanet District Council,09/06/2015,385981,837.00,,Profile Security Services Limited,PRO018,Operational Services,Revenue,Services,Facilities And Mangement Serv
http://thanet.gov.uk/supplierspend,Thanet District Council,09/06/2015,385536,1700.00,,Roberts Stonemasons Ltd,ROB001,Operational Services,Revenue,Grounds Mtce Costs,Cemetery And Crematorium
http://thanet.gov.uk/supplierspend,Thanet District Council,09/06/2015,386534,1000.00,,Royal Inst Of British Architects,RIB005,Community Services,Revenue,Grants & Subscriptions,Arts And Leisure Services
http://thanet.gov.uk/supplierspend,Thanet District Council,09/06/2015,386429,434.29,,S W Flooring (South East) Limited,SWF002,Community Services,Revenue,Fixtures & Fittings,Building Construction Material
http://thanet.gov.uk/supplierspend,Thanet District Council,09/06/2015,386535,46000.00,,Sands Heritage Ltd,SAN025,Community Services,Revenue,Grants & Subscriptions,Grants
http://thanet.gov.uk/supplierspend,Thanet District Council,09/06/2015,384773,834.05,,Sellick Partnership Ltd,SEL011,Corporate Resources and S151,Revenue,Agency Staff,Human Resources
http://thanet.gov.uk/supplierspend,Thanet District Council,09/06/2015,384779,1383.75,,Sellick Partnership Ltd,SEL011,Corporate Resources and S151,Revenue,Agency Staff,Human Resources
http://thanet.gov.uk/supplierspend,Thanet District Council,09/06/2015,384781,2711.50,,Sellick Partnership Ltd,SEL011,Corporate Resources and S151,Revenue,Services,Human Resources
http://thanet.gov.uk/supplierspend,Thanet District Council,09/06/2015,385185,1856.00,,Sellick Partnership Ltd,SEL011,Corporate Resources and S151,Revenue,Services,Human Resources
http://thanet.gov.uk/supplierspend,Thanet District Council,09/06/2015,385186,1875.00,,Sellick Partnership Ltd,SEL011,Corporate Resources and S151,Revenue,Services,Human Resources
http://thanet.gov.uk/supplierspend,Thanet District Council,09/06/2015,385200,840.00,,Sellick Partnership Ltd,SEL011,Corporate Resources and S151,Revenue,Agency Staff,Human Resources
http://thanet.gov.uk/supplierspend,Thanet District Council,09/06/2015,385284,1845.90,,Sellick Partnership Ltd,SEL011,Corporate Resources and S151,Revenue,Agency Staff,Human Resources
http://thanet.gov.uk/supplierspend,Thanet District Council,09/06/2015,385285,2929.50,,Sellick Partnership Ltd,SEL011,Corporate Resources and S151,Revenue,Services,Human Resources
http://thanet.gov.uk/supplierspend,Thanet District Council,09/06/2015,385832,875.00,,Sellick Partnership Ltd,SEL011,Corporate Resources and S151,Revenue,Agency Staff,Human Resources
http://thanet.gov.uk/supplierspend,Thanet District Council,09/06/2015,385833,1788.75,,Sellick Partnership Ltd,SEL011,Corporate Resources and S151,Revenue,Agency Staff,Human Resources
http://thanet.gov.uk/supplierspend,Thanet District Council,09/06/2015,385870,546.00,,Sellick Partnership Ltd,SEL011,Community Services,Revenue,Services,Human Resources
http://thanet.gov.uk/supplierspend,Thanet District Council,09/06/2015,385879,2929.50,,Sellick Partnership Ltd,SEL011,Corporate Resources and S151,Revenue,Services,Human Resources
http://thanet.gov.uk/supplierspend,Thanet District Council,09/06/2015,385989,796.25,,Sellick Partnership Ltd,SEL011,Corporate Resources and S151,Revenue,Agency Staff,Human Resources
http://thanet.gov.uk/supplierspend,Thanet District Council,09/06/2015,385732,490.90,,Spaldings  Ltd,SPA006,Operational Services,Revenue,"Equip, Furniture And Materials",Horticultural
http://thanet.gov.uk/supplierspend,Thanet District Council,09/06/2015,386398,4455.00,,Straight Manufacturing Limited,STR038,Operational Services,Revenue,"Equip, Furniture And Materials",Environmental Services
http://thanet.gov.uk/supplierspend,Thanet District Council,09/06/2015,385308,779.00,,Streetmaster (S.Wales) Limited,STR001,Operational Services,Revenue,"Equip, Furniture And Materials",Highway Equipment And Material
http://thanet.gov.uk/supplierspend,Thanet District Council,09/06/2015,385179,420.00,,Survey And Test,SUR015,Community Services,Revenue,"Repairs,  Alter & Mtce - Build",Utilities
http://thanet.gov.uk/supplierspend,Thanet District Council,09/06/2015,385958,617.99,,Tennant Uk Cleaning Solutions Ltd,TEN006,Operational Services,Revenue,Direct Transport Costs,Vehicle Management
http://thanet.gov.uk/supplierspend,Thanet District Council,09/06/2015,385962,8777.11,,Tfa Fuel Services Ltd,TFA003,Operational Services,Revenue,"Equip, Furniture And Materials",Utilities
http://thanet.gov.uk/supplierspend,Thanet District Council,09/06/2015,385963,1055.63,,Tfa Fuel Services Ltd,TFA003,Operational Services,Revenue,"Equip, Furniture And Materials",Utilities
http://thanet.gov.uk/supplierspend,Thanet District Council,09/06/2015,385807,2704.14,,The Glenwood Hotel,GLE007,Community Services,Revenue,Services,Housing Management
http://thanet.gov.uk/supplierspend,Thanet District Council,09/06/2015,385808,2416.65,,The Glenwood Hotel,GLE007,Community Services,Revenue,Services,Housing Management
http://thanet.gov.uk/supplierspend,Thanet District Council,09/06/2015,385607,1987.50,,The Natural Solution Cleaning Co Ltd,NAT030,Operational Services,Revenue,"Repairs,  Alter & Mtce - Build",Cleaning And Janitorial
http://thanet.gov.uk/supplierspend,Thanet District Council,09/06/2015,384868,12905.75,,Thomson Reuters,THO043,Corporate Resources and S151,Revenue,"Print, Stat And Gen Off Exps",Human Resources
http://thanet.gov.uk/supplierspend,Thanet District Council,09/06/2015,386066,870.25,,Thomson Reuters,THO043,Corporate Resources and S151,Revenue,"Print, Stat And Gen Off Exps",Human Resources
http://thanet.gov.uk/supplierspend,Thanet District Council,09/06/2015,386536,1555.00,,Titan Lifts Ltd,TIT006,Corporate Resources and S151,Balance Sheet,Capital Exp-Non Council Assets,Facilities And Mangement Serv
http://thanet.gov.uk/supplierspend,Thanet District Council,09/06/2015,385802,638.00,,Viatec (Uk) Limited,VIA002,Operational Services,Revenue,"Equip, Furniture And Materials",Construction-Repair And Maint
http://thanet.gov.uk/supplierspend,Thanet District Council,09/06/2015,385459,318.25,,W G Burbridge,BUR016,Operational Services,Revenue,"Equip, Furniture And Materials",Building Construction Material
http://thanet.gov.uk/supplierspend,Thanet District Council,09/06/2015,385460,750.82,,W G Burbridge,BUR016,Operational Services,Revenue,"Repairs,  Alter & Mtce - Build",Building Construction Material
http://thanet.gov.uk/supplierspend,Thanet District Council,09/06/2015,385490,423.80,,Yahire Ltd,YAH001,Corporate Resources and S151,Revenue,"Equip, Furniture And Materials",Facilities And Mangement Serv
http://thanet.gov.uk/supplierspend,Thanet District Council,09/06/2015,386537,1000.00,,Your Leisure Kent Limited,YOU016,Community Services,Revenue,Grants & Subscriptions,Arts And Leisure Services
http://thanet.gov.uk/supplierspend,Thanet District Council,16/06/2015,386835,770.50,,Allstar Business Solutions Ltd,ALL038,Operational Services,Revenue,Direct Transport Costs,Vehicle Management
http://thanet.gov.uk/supplierspend,Thanet District Council,16/06/2015,386857,6400.00,,Artic Building Services Limited,ART018,Corporate Resources and S151,Balance Sheet,Other Land And Buildings-Hra,Human Resources
http://thanet.gov.uk/supplierspend,Thanet District Council,16/06/2015,386858,8000.00,,Artic Building Services Limited,ART018,Corporate Resources and S151,Balance Sheet,Other Land And Buildings-Hra,Human Resources
http://thanet.gov.uk/supplierspend,Thanet District Council,16/06/2015,386859,3600.00,,Artic Building Services Limited,ART018,Corporate Resources and S151,Balance Sheet,Other Land And Buildings-Hra,Human Resources
http://thanet.gov.uk/supplierspend,Thanet District Council,16/06/2015,386410,8787.50,,Ass For Public Service Excellence,ASS013,Operational Services,Revenue,Services,Human Resources
http://thanet.gov.uk/supplierspend,Thanet District Council,16/06/2015,386414,5199.12,,Ats Euromaster Ltd,ATS002,Operational Services,Revenue,Direct Transport Costs,Vehicle Management
http://thanet.gov.uk/supplierspend,Thanet District Council,16/06/2015,386007,668.50,,Beckwith Consulting Limited,BEC001,Corporate Resources and S151,Revenue,Training,Human Resources
http://thanet.gov.uk/supplierspend,Thanet District Council,16/06/2015,386401,260.00,,Birchington Village Centre Association,BIR008,Corporate Resources and S151,Revenue,Rents,Facilities And Mangement Serv
http://thanet.gov.uk/supplierspend,Thanet District Council,16/06/2015,385857,1960.68,,Bt Payment Services Ltd,BTE003,Corporate Resources and S151,Balance Sheet,Telephone Holding Account,ICT
http://thanet.gov.uk/supplierspend,Thanet District Council,16/06/2015,385327,2000.00,,Campbell Reith Hill Llp,CAM013,Corporate Resources and S151,Balance Sheet,Investment Property For Lease,Consultancy
http://thanet.gov.uk/supplierspend,Thanet District Council,16/06/2015,385786,637.40,,Caxtons,CAX005,Community Services,Revenue,Rents,Facilities And Mangement Serv
http://thanet.gov.uk/supplierspend,Thanet District Council,16/06/2015,385905,-625.23,,Caxtons,CAX005,Community Services,Revenue,Rents,Facilities And Mangement Serv
http://thanet.gov.uk/supplierspend,Thanet District Council,16/06/2015,386697,5800.00,,Chapel Press,CHA039,Community Services,Revenue,"Print, Stat And Gen Off Exps",Facilities And Mangement Serv
http://thanet.gov.uk/supplierspend,Thanet District Council,16/06/2015,386698,598.00,,Chapel Press,CHA039,Community Services,Revenue,"Print, Stat And Gen Off Exps",Facilities And Mangement Serv
http://thanet.gov.uk/supplierspend,Thanet District Council,16/06/2015,386304,1500.00,,Clarion Events Limited,CLA041,Operational Services,Revenue,Miscellaneous Expenses,Maritime Services
http://thanet.gov.uk/supplierspend,Thanet District Council,16/06/2015,386284,893.40,,Computerland Uk Limited,COM045,East Kent Shared Services,Revenue,Communications & Computing,ICT
http://thanet.gov.uk/supplierspend,Thanet District Council,16/06/2015,386290,454.25,,Corporate Direct (Europe) Ltd,COR006,East Kent Shared Services,Revenue,"Equip, Furniture And Materials",ICT
http://thanet.gov.uk/supplierspend,Thanet District Council,16/06/2015,386888,9015.00,,Downfast Demolition & Salvage Ltd,DOW001,Community Services,Revenue,"Repairs,  Alter & Mtce - Build",Building Construction Material
http://thanet.gov.uk/supplierspend,Thanet District Council,16/06/2015,386382,650.00,,Dr Alexander Marshall,MAR100,Operational Services,Revenue,Services,Cemetery And Crematorium
http://thanet.gov.uk/supplierspend,Thanet District Council,16/06/2015,386381,2125.00,,Dr R K Chhabra,CHH001,Operational Services,Revenue,Services,Cemetery And Crematorium
http://thanet.gov.uk/supplierspend,Thanet District Council,16/06/2015,386823,650.00,,Electoral Reform Services,ELE010,Corporate Resources and S151,Revenue,Services,Facilities And Mangement Serv
http://thanet.gov.uk/supplierspend,Thanet District Council,16/06/2015,386022,394.00,,Estuary Services Ltd,EST002,Operational Services,Revenue,Cont Hire & Operating Lease,Maritime Services
http://thanet.gov.uk/supplierspend,Thanet District Council,16/06/2015,386866,6048.00,,Evermech Services Ltd,EVE011,Corporate Resources and S151,Balance Sheet,Capital Exp-Non Council Assets,Grants
http://thanet.gov.uk/supplierspend,Thanet District Council,16/06/2015,386077,281.94,,F R Jones & Son,JON020,Operational Services,Revenue,"Equip, Furniture And Materials",Horticultural
http://thanet.gov.uk/supplierspend,Thanet District Council,16/06/2015,385487,2100.00,,Geocast Tv Limited,GEO015,Community Services,Revenue,Services,Facilities And Mangement Serv
http://thanet.gov.uk/supplierspend,Thanet District Council,16/06/2015,386409,930.00,,Grassform Plant Hire Limited,GRA052,Operational Services,Revenue,"Equip, Furniture And Materials",Horticultural
http://thanet.gov.uk/supplierspend,Thanet District Council,16/06/2015,386696,770.00,,Gulliver'S Truck Hire Limited,GUL001,Operational Services,Revenue,Cont Hire & Operating Lease,Vehicle Management
http://thanet.gov.uk/supplierspend,Thanet District Council,16/06/2015,386337,429.17,,Hands On Suppliers Ltd,HAN007,Operational Services,Revenue,"Equip, Furniture And Materials",Clothing
http://thanet.gov.uk/supplierspend,Thanet District Council,16/06/2015,386699,1686.40,,Health & Safety Executive,HEA017,Operational Services,Revenue,Services,Health And Safety
http://thanet.gov.uk/supplierspend,Thanet District Council,16/06/2015,386702,2790.00,,Health & Safety Executive,HEA017,Operational Services,Revenue,Services,Health And Safety
http://thanet.gov.uk/supplierspend,Thanet District Council,16/06/2015,386069,852.63,,Hi Way Services Ltd,HIW002,Operational Services,Revenue,"Repairs,  Alter & Mtce - Build",Highway Equipment And Material
http://thanet.gov.uk/supplierspend,Thanet District Council,16/06/2015,386419,650.00,,Hi Way Services Ltd,HIW002,Operational Services,Revenue,"Repairs,  Alter & Mtce - Build",Highway Equipment And Material
http://thanet.gov.uk/supplierspend,Thanet District Council,16/06/2015,386276,408.00,,Holt & Wotton Ltd,HOL001,Corporate Resources and S151,Balance Sheet,Repairs And Mtce Holding A/C,Building Construction Material
http://thanet.gov.uk/supplierspend,Thanet District Council,16/06/2015,386845,13286.40,,Hootsuite Media Inc,HOO003,Corporate Resources and S151,Revenue,Communications & Computing,ICT
http://thanet.gov.uk/supplierspend,Thanet District Council,16/06/2015,385943,3708.80,,Hr Go Recruitment Ltd,HRG002,Operational Services,Revenue,Agency Staff,Human Resources
http://thanet.gov.uk/supplierspend,Thanet District Council,16/06/2015,385944,9375.22,,Hr Go Recruitment Ltd,HRG002,Operational Services,Revenue,Agency Staff,Human Resources
http://thanet.gov.uk/supplierspend,Thanet District Council,16/06/2015,385945,5151.94,,Hr Go Recruitment Ltd,HRG002,Operational Services,Revenue,Agency Staff,Human Resources
http://thanet.gov.uk/supplierspend,Thanet District Council,16/06/2015,386454,1310.61,,Hr Go Recruitment Ltd,HRG002,Operational Services,Revenue,Agency Staff,Human Resources
http://thanet.gov.uk/supplierspend,Thanet District Council,16/06/2015,386455,710.06,,Hr Go Recruitment Ltd,HRG002,Operational Services,Revenue,Agency Staff,Human Resources
http://thanet.gov.uk/supplierspend,Thanet District Council,16/06/2015,386456,523.71,,Hr Go Recruitment Ltd,HRG002,Operational Services,Revenue,Agency Staff,Human Resources
http://thanet.gov.uk/supplierspend,Thanet District Council,16/06/2015,386457,5686.68,,Hr Go Recruitment Ltd,HRG002,Operational Services,Revenue,Agency Staff,Human Resources
http://thanet.gov.uk/supplierspend,Thanet District Council,16/06/2015,386458,4766.25,,Hr Go Recruitment Ltd,HRG002,Operational Services,Revenue,Agency Staff,Human Resources
http://thanet.gov.uk/supplierspend,Thanet District Council,16/06/2015,386837,4574.97,,Hr Go Recruitment Ltd,HRG002,Operational Services,Revenue,Agency Staff,Human Resources
http://thanet.gov.uk/supplierspend,Thanet District Council,16/06/2015,386838,9789.11,,Hr Go Recruitment Ltd,HRG002,Operational Services,Revenue,Agency Staff,Human Resources
http://thanet.gov.uk/supplierspend,Thanet District Council,16/06/2015,386068,500.00,,Hse Training Ltd,HSE002,Operational Services,Revenue,Training,Human Resources
http://thanet.gov.uk/supplierspend,Thanet District Council,16/06/2015,386074,927.39,,Hydro-Cleansing Ltd,HYD012,Operational Services,Revenue,Cleaning & Domestic Supplies,Building Construction Material
http://thanet.gov.uk/supplierspend,Thanet District Council,16/06/2015,386013,1920.00,,Idox Software  Limited,IDO001,Community Services,Revenue,Communications & Computing,ICT
http://thanet.gov.uk/supplierspend,Thanet District Council,16/06/2015,386034,314.67,,Insight Direct (Uk) Ltd,INS013,East Kent Shared Services,Revenue,Communications & Computing,ICT
http://thanet.gov.uk/supplierspend,Thanet District Council,16/06/2015,386482,258.76,,Johnston Sweepers Ltd,JOH008,Operational Services,Revenue,Direct Transport Costs,Vehicle Management
http://thanet.gov.uk/supplierspend,Thanet District Council,16/06/2015,386302,4437.50,,Jump It Recruitment Solutions Ltd,JUM001,East Kent Shared Services,Revenue,Agency Staff,Human Resources
http://thanet.gov.uk/supplierspend,Thanet District Council,16/06/2015,386303,900.00,,Jump It Recruitment Solutions Ltd,JUM001,East Kent Shared Services,Revenue,Agency Staff,Human Resources
http://thanet.gov.uk/supplierspend,Thanet District Council,16/06/2015,386494,1048.83,,Kendall Cars Ltd,KEN041,Operational Services,Revenue,Cont Hire & Operating Lease,Vehicle Management
http://thanet.gov.uk/supplierspend,Thanet District Council,16/06/2015,386495,1228.83,,Kendall Cars Ltd,KEN041,Operational Services,Revenue,Cont Hire & Operating Lease,Vehicle Management
http://thanet.gov.uk/supplierspend,Thanet District Council,16/06/2015,386313,500.00,,Kent County Council,KCC002,Chief Executive,Revenue,Grants & Subscriptions,Various Cats-Public Sector
http://thanet.gov.uk/supplierspend,Thanet District Council,16/06/2015,386314,3000.00,,Kent County Council,KCC002,Chief Executive,Revenue,Grants & Subscriptions,Various Cats-Public Sector
http://thanet.gov.uk/supplierspend,Thanet District Council,16/06/2015,386445,1000.00,,Kent County Council,KCC002,Corporate Resources and S151,Revenue,Grants & Subscriptions,Various Cats-Public Sector
http://thanet.gov.uk/supplierspend,Thanet District Council,16/06/2015,386466,21635.73,,Kent County Council (Kcs),KCC003,Operational Services,Revenue,Direct Transport Costs,Facilities And Mangement Serv
http://thanet.gov.uk/supplierspend,Thanet District Council,16/06/2015,386839,400.00,,Km Media Group Limited,KMM001,Community Services,Revenue,Miscellaneous Expenses,Facilities And Mangement Serv
http://thanet.gov.uk/supplierspend,Thanet District Council,16/06/2015,386554,2944.08,,Level 3 Communications (Uk) Ltd,LEV005,Corporate Resources and S151,Balance Sheet,Telephone Holding Account,ICT
http://thanet.gov.uk/supplierspend,Thanet District Council,16/06/2015,386030,320.00,,M D Electrics,MDE001,Community Services,Revenue,"Repairs,  Alter & Mtce - Build",Building Construction Material
http://thanet.gov.uk/supplierspend,Thanet District Council,16/06/2015,386043,640.00,,M D Electrics,MDE001,Community Services,Revenue,"Repairs,  Alter & Mtce - Build",Building Construction Material
http://thanet.gov.uk/supplierspend,Thanet District Council,16/06/2015,386033,260.00,,Maxwells Grounds Maintenance Ltd,MAX002,Operational Services,Revenue,"Repairs,  Alter & Mtce - Build",Construction-Repair And Maint
http://thanet.gov.uk/supplierspend,Thanet District Council,16/06/2015,386038,300.00,,Maxwells Grounds Maintenance Ltd,MAX002,Community Services,Revenue,"Repairs,  Alter & Mtce - Build",Construction-Repair And Maint
http://thanet.gov.uk/supplierspend,Thanet District Council,16/06/2015,385866,75422.34,,Mears Ltd,MEA003,Corporate Resources and S151,Balance Sheet,Repairs And Mtce Holding A/C,Construction-Repair And Maint
http://thanet.gov.uk/supplierspend,Thanet District Council,16/06/2015,385867,7110.18,,Mears Ltd,MEA003,Corporate Resources and S151,Balance Sheet,Repairs And Mtce Holding A/C,Construction-Repair And Maint
http://thanet.gov.uk/supplierspend,Thanet District Council,16/06/2015,385868,2248.63,,Mears Ltd,MEA003,Corporate Resources and S151,Balance Sheet,Repairs And Mtce Holding A/C,Construction-Repair And Maint
http://thanet.gov.uk/supplierspend,Thanet District Council,16/06/2015,385969,7523.63,,Mears Ltd,MEA003,Corporate Resources and S151,Balance Sheet,Repairs And Mtce Holding A/C,Construction-Repair And Maint
http://thanet.gov.uk/supplierspend,Thanet District Council,16/06/2015,385987,625.71,,Mears Ltd,MEA003,Community Services,Revenue,"Repairs,  Alter & Mtce - Build",Construction-Repair And Maint
http://thanet.gov.uk/supplierspend,Thanet District Council,16/06/2015,386317,605.20,,Mears Ltd,MEA003,Community Services,Revenue,"Repairs,  Alter & Mtce - Build",Construction-Repair And Maint
http://thanet.gov.uk/supplierspend,Thanet District Council,16/06/2015,386443,230.28,,Mears Ltd,MEA003,Operational Services,Revenue,"Repairs,  Alter & Mtce - Build",Construction-Repair And Maint
http://thanet.gov.uk/supplierspend,Thanet District Council,16/06/2015,386465,377.49,,Mears Ltd,MEA003,Operational Services,Revenue,"Repairs,  Alter & Mtce - Build",Construction-Repair And Maint
http://thanet.gov.uk/supplierspend,Thanet District Council,16/06/2015,386467,366.71,,Mears Ltd,MEA003,Operational Services,Revenue,"Repairs,  Alter & Mtce - Build",Construction-Repair And Maint
http://thanet.gov.uk/supplierspend,Thanet District Council,16/06/2015,386327,2888.00,,Meter Macs Ltd,MET014,Operational Services,Revenue,"Equip, Furniture And Materials",Street And Traffic Management
http://thanet.gov.uk/supplierspend,Thanet District Council,16/06/2015,386383,4354.20,,Metric Group Ltd,MET001,Operational Services,Revenue,"Equip, Furniture And Materials",Street And Traffic Management
http://thanet.gov.uk/supplierspend,Thanet District Council,16/06/2015,386384,628.26,,Metric Group Ltd,MET001,Operational Services,Revenue,Communications & Computing,Street And Traffic Management
http://thanet.gov.uk/supplierspend,Thanet District Council,16/06/2015,386406,8715.25,,Midland Software Limited,MID013,East Kent Shared Services,Revenue,Communications & Computing,ICT
http://thanet.gov.uk/supplierspend,Thanet District Council,16/06/2015,385353,2000.00,,Monthly Media Limited,MON028,Operational Services,Revenue,Miscellaneous Expenses,Facilities And Mangement Serv
http://thanet.gov.uk/supplierspend,Thanet District Council,16/06/2015,386047,622.50,,Mr Darren Osborne,OSB008,Community Services,Revenue,Cleaning & Domestic Supplies,Cleaning And Janitorial
http://thanet.gov.uk/supplierspend,Thanet District Council,16/06/2015,386047,30.00,,Mr Darren Osborne,OSB008,Operational Services,Revenue,Cleaning & Domestic Supplies,Cleaning And Janitorial
http://thanet.gov.uk/supplierspend,Thanet District Council,16/06/2015,386321,1300.00,,Nagels Uk Ltd,NAG001,Operational Services,Revenue,"Equip, Furniture And Materials",Facilities And Mangement Serv
http://thanet.gov.uk/supplierspend,Thanet District Council,16/06/2015,386865,6896.00,,Northwood Builders,NOR002,Corporate Resources and S151,Balance Sheet,Capital Exp-Non Council Assets,Grants
http://thanet.gov.uk/supplierspend,Thanet District Council,16/06/2015,385804,345.81,,O2 (Uk) Ltd,O2U001,Operational Services,Revenue,Communications & Computing,ICT
http://thanet.gov.uk/supplierspend,Thanet District Council,16/06/2015,385743,797.69,,Ocs Group Uk Ltd T/A Fountains,OCS005,Community Services,Revenue,Cleaning & Domestic Supplies,Cleaning And Janitorial
http://thanet.gov.uk/supplierspend,Thanet District Council,16/06/2015,385848,11498.41,,Ocs Group Uk Ltd T/A Fountains,OCS005,Corporate Resources and S151,Balance Sheet,Repairs And Mtce Holding A/C,Cleaning And Janitorial
http://thanet.gov.uk/supplierspend,Thanet District Council,16/06/2015,385584,292.72,,Orange Personal Communications Ltd,ORA002,Corporate Resources and S151,Revenue,Communications & Computing,ICT
http://thanet.gov.uk/supplierspend,Thanet District Council,16/06/2015,386822,610.00,,Ovenden Plant Hire Ltd,OVE002,Operational Services,Revenue,Cont Hire & Operating Lease,Vehicle Management
http://thanet.gov.uk/supplierspend,Thanet District Council,16/06/2015,386039,1925.00,,P Lawrence & Son,LAW001,Community Services,Revenue,"Repairs,  Alter & Mtce - Build",Construction-Repair And Maint
http://thanet.gov.uk/supplierspend,Thanet District Council,16/06/2015,386071,241.11,,Page Plan Prints,PAG009,Community Services,Revenue,"Print, Stat And Gen Off Exps",Facilities And Mangement Serv
http://thanet.gov.uk/supplierspend,Thanet District Council,16/06/2015,386048,3913.34,,Phoenix Software Ltd,PHO002,East Kent Shared Services,Revenue,Communications & Computing,ICT
http://thanet.gov.uk/supplierspend,Thanet District Council,16/06/2015,385955,12839.43,,Probrand Ltd,PRO012,East Kent Shared Services,Revenue,Communications & Computing,ICT
http://thanet.gov.uk/supplierspend,Thanet District Council,16/06/2015,386044,11612.76,,Probrand Ltd,PRO012,East Kent Shared Services,Revenue,Communications & Computing,ICT
http://thanet.gov.uk/supplierspend,Thanet District Council,16/06/2015,386322,20918.52,,Profile Security Services Limited,PRO018,Operational Services,Revenue,Services,Facilities And Mangement Serv
http://thanet.gov.uk/supplierspend,Thanet District Council,16/06/2015,386035,1085.00,,R Cannon,CAN007,Operational Services,Revenue,Services,Maritime Services
http://thanet.gov.uk/supplierspend,Thanet District Council,16/06/2015,386036,455.00,,R Cannon,CAN007,Operational Services,Revenue,Services,Maritime Services
http://thanet.gov.uk/supplierspend,Thanet District Council,16/06/2015,386397,1050.00,,Ransomes Jacobsen Ltd,RAN003,Operational Services,Revenue,Expenses,Human Resources
http://thanet.gov.uk/supplierspend,Thanet District Council,16/06/2015,386399,1350.00,,Ransomes Jacobsen Ltd,RAN003,Operational Services,Revenue,Training,Human Resources
http://thanet.gov.uk/supplierspend,Thanet District Council,16/06/2015,386824,1579.83,,Royal Mail,ROY004,Corporate Resources and S151,Revenue,Communications & Computing,Mail Services
http://thanet.gov.uk/supplierspend,Thanet District Council,16/06/2015,386825,5446.27,,Royal Mail,ROY004,Corporate Resources and S151,Revenue,Communications & Computing,Mail Services
http://thanet.gov.uk/supplierspend,Thanet District Council,16/06/2015,386312,2173.50,,Sellick Partnership Ltd,SEL011,Corporate Resources and S151,Revenue,Services,Human Resources
http://thanet.gov.uk/supplierspend,Thanet District Council,16/06/2015,386325,1350.00,,Sellick Partnership Ltd,SEL011,Corporate Resources and S151,Revenue,Agency Staff,Human Resources
http://thanet.gov.uk/supplierspend,Thanet District Council,16/06/2015,386326,540.00,,Sellick Partnership Ltd,SEL011,Corporate Resources and S151,Revenue,Agency Staff,Human Resources
http://thanet.gov.uk/supplierspend,Thanet District Council,16/06/2015,385542,830.02,,Southern Electric,SEL007,Community Services,Revenue,Energy Costs,Utilities
http://thanet.gov.uk/supplierspend,Thanet District Council,16/06/2015,385543,311.55,,Southern Electric,SEL007,Community Services,Revenue,Energy Costs,Utilities
http://thanet.gov.uk/supplierspend,Thanet District Council,16/06/2015,385553,316.58,,Southern Electric,SEL007,Operational Services,Revenue,Energy Costs,Utilities
http://thanet.gov.uk/supplierspend,Thanet District Council,16/06/2015,385556,471.73,,Southern Electric,SEL007,Community Services,Revenue,Energy Costs,Utilities
http://thanet.gov.uk/supplierspend,Thanet District Council,16/06/2015,385561,818.01,,Southern Electric,SEL007,Operational Services,Revenue,Energy Costs,Utilities
http://thanet.gov.uk/supplierspend,Thanet District Council,16/06/2015,385562,239.90,,Southern Electric,SEL007,Operational Services,Revenue,Energy Costs,Utilities
http://thanet.gov.uk/supplierspend,Thanet District Council,16/06/2015,385568,327.70,,Southern Electric,SEL007,Operational Services,Revenue,Energy Costs,Utilities
http://thanet.gov.uk/supplierspend,Thanet District Council,16/06/2015,385572,496.45,,Southern Electric,SEL007,Operational Services,Revenue,Energy Costs,Utilities
http://thanet.gov.uk/supplierspend,Thanet District Council,16/06/2015,385575,338.77,,Southern Electric,SEL007,Operational Services,Revenue,Energy Costs,Utilities
http://thanet.gov.uk/supplierspend,Thanet District Council,16/06/2015,385576,1100.52,,Southern Electric,SEL007,Operational Services,Revenue,Energy Costs,Utilities
http://thanet.gov.uk/supplierspend,Thanet District Council,16/06/2015,385577,826.72,,Southern Electric,SEL007,Operational Services,Revenue,Energy Costs,Utilities
http://thanet.gov.uk/supplierspend,Thanet District Council,16/06/2015,386086,525.11,,Southern Electric,SEL007,Operational Services,Revenue,Energy Costs,Utilities
http://thanet.gov.uk/supplierspend,Thanet District Council,16/06/2015,386348,282.15,,Southern Electric,SEL007,Operational Services,Revenue,Energy Costs,Utilities
http://thanet.gov.uk/supplierspend,Thanet District Council,16/06/2015,386353,211.31,,Southern Electric,SEL007,Operational Services,Revenue,Energy Costs,Utilities
http://thanet.gov.uk/supplierspend,Thanet District Council,16/06/2015,386357,230.34,,Southern Electric,SEL007,Operational Services,Revenue,Energy Costs,Utilities
http://thanet.gov.uk/supplierspend,Thanet District Council,16/06/2015,386372,1101.18,,Southern Electric,SEL007,Community Services,Revenue,Energy Costs,Utilities
http://thanet.gov.uk/supplierspend,Thanet District Council,16/06/2015,386374,4.88,,Southern Electric,SEL007,Community Services,Revenue,Energy Costs,Utilities
http://thanet.gov.uk/supplierspend,Thanet District Council,16/06/2015,386374,507.36,,Southern Electric,SEL007,Operational Services,Revenue,Energy Costs,Utilities
http://thanet.gov.uk/supplierspend,Thanet District Council,16/06/2015,386546,1746.99,,Southern Electric,SEL007,Community Services,Revenue,Energy Costs,Utilities
http://thanet.gov.uk/supplierspend,Thanet District Council,16/06/2015,386547,2203.57,,Southern Electric,SEL007,Community Services,Revenue,Energy Costs,Utilities
http://thanet.gov.uk/supplierspend,Thanet District Council,16/06/2015,386548,2960.81,,Southern Electric,SEL007,Community Services,Revenue,Energy Costs,Utilities
http://thanet.gov.uk/supplierspend,Thanet District Council,16/06/2015,386563,3025.13,,Southern Electric,SEL007,Operational Services,Revenue,Energy Costs,Utilities
http://thanet.gov.uk/supplierspend,Thanet District Council,16/06/2015,386570,2128.36,,Southern Electric,SEL007,Community Services,Revenue,Energy Costs,Utilities
http://thanet.gov.uk/supplierspend,Thanet District Council,16/06/2015,386572,4203.27,,Southern Electric,SEL007,Community Services,Revenue,Energy Costs,Utilities
http://thanet.gov.uk/supplierspend,Thanet District Council,16/06/2015,386805,1428.54,,Southern Water,SWA001,Operational Services,Revenue,Water Services,Utilities
http://thanet.gov.uk/supplierspend,Thanet District Council,16/06/2015,386807,873.76,,Southern Water,SWA001,Operational Services,Revenue,Water Services,Utilities
http://thanet.gov.uk/supplierspend,Thanet District Council,16/06/2015,386808,1996.75,,Southern Water,SWA001,Operational Services,Revenue,Water Services,Utilities
http://thanet.gov.uk/supplierspend,Thanet District Council,16/06/2015,386493,753.75,,Sparshatts Of Kent Ltd,SPA008,Operational Services,Revenue,Direct Transport Costs,Vehicle Management
http://thanet.gov.uk/supplierspend,Thanet District Council,16/06/2015,386305,223.30,,"St John, Kent",STJ002,Corporate Resources and S151,Revenue,Services,Arts And Leisure Services
http://thanet.gov.uk/supplierspend,Thanet District Council,16/06/2015,386861,17125.64,,Standage & Co Limited,STA058,Corporate Resources and S151,Balance Sheet,Council Dwellings,Construction-Repair And Maint
http://thanet.gov.uk/supplierspend,Thanet District Council,16/06/2015,386862,45044.76,,Standage & Co Limited,STA058,Corporate Resources and S151,Balance Sheet,Council Dwellings,Construction-Repair And Maint
http://thanet.gov.uk/supplierspend,Thanet District Council,16/06/2015,386394,9999.00,,Syx Automations Ltd,SYX001,Corporate Resources and S151,Balance Sheet,Other Land And Buildings-Hra,Facilities And Mangement Serv
http://thanet.gov.uk/supplierspend,Thanet District Council,16/06/2015,386316,28.80,,Tfa Fuel Services Ltd,TFA003,Operational Services,Revenue,Direct Transport Costs,Utilities
http://thanet.gov.uk/supplierspend,Thanet District Council,16/06/2015,386316,6540.49,,Tfa Fuel Services Ltd,TFA003,Operational Services,Revenue,"Equip, Furniture And Materials",Utilities
http://thanet.gov.uk/supplierspend,Thanet District Council,16/06/2015,386420,322.20,,Thanet Waste Services Ltd,TWA001,Operational Services,Revenue,Private Contractors,Environmental Services
http://thanet.gov.uk/supplierspend,Thanet District Council,16/06/2015,386870,450.00,,The Gpm Partnership Limited,GPM001,Community Services,Revenue,Services,Consultancy
http://thanet.gov.uk/supplierspend,Thanet District Council,16/06/2015,386869,4448.00,,The Wonderful Creative Agency Ltd,WON001,Community Services,Revenue,Grants & Subscriptions,Facilities And Mangement Serv
http://thanet.gov.uk/supplierspend,Thanet District Council,16/06/2015,386836,3500.00,,Thompsons Solicitors Llp,THO046,Corporate Resources and S151,Revenue,Services,Legal Services
http://thanet.gov.uk/supplierspend,Thanet District Council,16/06/2015,386005,9937.00,,Titan Lifts Ltd,TIT006,Corporate Resources and S151,Balance Sheet,Repairs And Mtce Holding A/C,Facilities And Mangement Serv
http://thanet.gov.uk/supplierspend,Thanet District Council,16/06/2015,385985,220.05,,Total Supplies Ltd,TOT009,Corporate Resources and S151,Balance Sheet,Cleaning & Domestic Supplies,Cleaning And Janitorial
http://thanet.gov.uk/supplierspend,Thanet District Council,16/06/2015,386468,279.00,,Trafalgar Cleaning Equipment Ltd,TRA033,Operational Services,Revenue,"Equip, Furniture And Materials",Cleaning And Janitorial
http://thanet.gov.uk/supplierspend,Thanet District Council,16/06/2015,386046,346.50,,Trinity Resource Centre,TRI008,Corporate Resources and S151,Revenue,Rents,Facilities And Mangement Serv
http://thanet.gov.uk/supplierspend,Thanet District Council,16/06/2015,386006,3405.00,,Uplands Engineering Ltd,UPL001,Operational Services,Revenue,"Repairs,  Alter & Mtce - Build",Maritime Services
http://thanet.gov.uk/supplierspend,Thanet District Council,16/06/2015,386425,257.04,,Viridor Waste Management Ltd,VIR003,Community Services,Revenue,Private Contractors,Environmental Services
http://thanet.gov.uk/supplierspend,Thanet District Council,16/06/2015,385859,5868.53,,Vodafone Limited (Corporate),VOD001,Corporate Resources and S151,Balance Sheet,Mobile Phone Holding A/C,ICT
http://thanet.gov.uk/supplierspend,Thanet District Council,17/06/2015,383031,26167.66,,Jenner (Contractors) Ltd,JEN002,Corporate Resources and S151,Balance Sheet,Council Dwellings,Construction-Repair And Maint
http://thanet.gov.uk/supplierspend,Thanet District Council,17/06/2015,383032,44827.48,,Jenner (Contractors) Ltd,JEN002,Corporate Resources and S151,Balance Sheet,Council Dwellings,Construction-Repair And Maint
http://thanet.gov.uk/supplierspend,Thanet District Council,18/06/2015,387207,237004.00,,Kent & Medway Towns Fire Authority,KMT001,Corporate Resources and S151,Balance Sheet,Collection Fund - Preceptors,Various Cats-Public Sector
http://thanet.gov.uk/supplierspend,Thanet District Council,18/06/2015,387208,3663427.00,,Kent County Council,KCC022,Corporate Resources and S151,Balance Sheet,Collection Fund - Preceptors,Various Cats-Public Sector
http://thanet.gov.uk/supplierspend,Thanet District Council,18/06/2015,387209,495882.00,,Kent Police & Crime Commissioner,KPA003,Corporate Resources and S151,Balance Sheet,Collection Fund - Preceptors,Various Cats-Public Sector
http://thanet.gov.uk/supplierspend,Thanet District Council,19/06/2015,N/A,280.78,,REDACTED PERSONAL DATA,N/A,Community Services,Revenue,Car Allowances,Non Trade Payee
http://thanet.gov.uk/supplierspend,Thanet District Council,19/06/2015,N/A,330.89,,REDACTED PERSONAL DATA,N/A,Operational Services,Revenue,Car Allowances,Non Trade Payee
http://thanet.gov.uk/supplierspend,Thanet District Council,19/06/2015,N/A,852.97,,REDACTED PERSONAL DATA,N/A,East Kent Shared Services,Revenue,Car Allowances,Non Trade Payee
http://thanet.gov.uk/supplierspend,Thanet District Council,19/06/2015,N/A,332.78,,REDACTED PERSONAL DATA,N/A,Community Services,Revenue,Car Allowances,Non Trade Payee
http://thanet.gov.uk/supplierspend,Thanet District Council,19/06/2015,N/A,401.43,,REDACTED PERSONAL DATA,N/A,Community Services,Revenue,Car Allowances,Non Trade Payee
http://thanet.gov.uk/supplierspend,Thanet District Council,19/06/2015,N/A,345.07,,REDACTED PERSONAL DATA,N/A,Community Services,Revenue,Car Allowances,Non Trade Payee
http://thanet.gov.uk/supplierspend,Thanet District Council,19/06/2015,N/A,428.27,,REDACTED PERSONAL DATA,N/A,Operational Services,Revenue,Car Allowances,Non Trade Payee
http://thanet.gov.uk/supplierspend,Thanet District Council,19/06/2015,N/A,235.86,,REDACTED PERSONAL DATA,N/A,Community Services,Revenue,Car Allowances,Non Trade Payee
http://thanet.gov.uk/supplierspend,Thanet District Council,19/06/2015,N/A,5.00,,REDACTED PERSONAL DATA,N/A,Community Services,Revenue,Public Transport,Non Trade Payee
http://thanet.gov.uk/supplierspend,Thanet District Council,19/06/2015,N/A,11.35,,REDACTED PERSONAL DATA,N/A,Community Services,Revenue,Expenses,Non Trade Payee
http://thanet.gov.uk/supplierspend,Thanet District Council,19/06/2015,N/A,272.57,,REDACTED PERSONAL DATA,N/A,Operational Services,Revenue,Car Allowances,Non Trade Payee
http://thanet.gov.uk/supplierspend,Thanet District Council,19/06/2015,N/A,60.00,,REDACTED PERSONAL DATA,N/A,Corporate Resources and S151,Revenue,Public Transport,Non Trade Payee
http://thanet.gov.uk/supplierspend,Thanet District Council,19/06/2015,N/A,61.61,,REDACTED PERSONAL DATA,N/A,Corporate Resources and S151,Revenue,Expenses,Non Trade Payee
http://thanet.gov.uk/supplierspend,Thanet District Council,19/06/2015,N/A,136.80,,REDACTED PERSONAL DATA,N/A,Corporate Resources and S151,Revenue,Car Allowances,Non Trade Payee
http://thanet.gov.uk/supplierspend,Thanet District Council,19/06/2015,N/A,28.99,,REDACTED PERSONAL DATA,N/A,Corporate Resources and S151,Revenue,"Print, Stat And Gen Off Exps",Non Trade Payee
http://thanet.gov.uk/supplierspend,Thanet District Council,19/06/2015,N/A,253.83,,REDACTED PERSONAL DATA,N/A,East Kent Shared Services,Revenue,Car Allowances,Non Trade Payee
http://thanet.gov.uk/supplierspend,Thanet District Council,19/06/2015,N/A,398.01,,REDACTED PERSONAL DATA,N/A,Corporate Resources and S151,Revenue,Car Allowances,Non Trade Payee
http://thanet.gov.uk/supplierspend,Thanet District Council,19/06/2015,N/A,556.07,,REDACTED PERSONAL DATA,N/A,Community Services,Revenue,Car Allowances,Non Trade Payee
http://thanet.gov.uk/supplierspend,Thanet District Council,19/06/2015,N/A,406.52,,REDACTED PERSONAL DATA,N/A,Operational Services,Revenue,Car Allowances,Non Trade Payee
http://thanet.gov.uk/supplierspend,Thanet District Council,19/06/2015,N/A,305.36,,REDACTED PERSONAL DATA,N/A,Community Services,Revenue,Car Allowances,Non Trade Payee
http://thanet.gov.uk/supplierspend,Thanet District Council,19/06/2015,N/A,8.00,,REDACTED PERSONAL DATA,N/A,Community Services,Revenue,"Print, Stat And Gen Off Exps",Non Trade Payee
http://thanet.gov.uk/supplierspend,Thanet District Council,19/06/2015,N/A,175.00,,REDACTED PERSONAL DATA,N/A,East Kent Shared Services,Revenue,Public Transport,Non Trade Payee
http://thanet.gov.uk/supplierspend,Thanet District Council,19/06/2015,N/A,83.75,,REDACTED PERSONAL DATA,N/A,East Kent Shared Services,Revenue,Expenses,Non Trade Payee
http://thanet.gov.uk/supplierspend,Thanet District Council,19/06/2015,N/A,5.92,,REDACTED PERSONAL DATA,N/A,East Kent Shared Services,Revenue,"Equip, Furniture And Materials",Non Trade Payee
http://thanet.gov.uk/supplierspend,Thanet District Council,19/06/2015,N/A,13.12,,REDACTED PERSONAL DATA,N/A,East Kent Shared Services,Revenue,Car Allowances,Non Trade Payee
http://thanet.gov.uk/supplierspend,Thanet District Council,19/06/2015,N/A,440.56,,REDACTED PERSONAL DATA,N/A,East Kent Shared Services,Revenue,Car Allowances,Non Trade Payee
http://thanet.gov.uk/supplierspend,Thanet District Council,19/06/2015,N/A,334.27,,REDACTED PERSONAL DATA,N/A,East Kent Shared Services,Revenue,Car Allowances,Non Trade Payee
http://thanet.gov.uk/supplierspend,Thanet District Council,19/06/2015,N/A,322.55,,REDACTED PERSONAL DATA,N/A,Operational Services,Revenue,car Allowances,Non Trade Payee
http://thanet.gov.uk/supplierspend,Thanet District Council,23/06/2015,386719,678.72,,Access Ladders (Uk) Limited,ACC009,Operational Services,Revenue,"Repairs,  Alter & Mtce - Build",Building Construction Material
http://thanet.gov.uk/supplierspend,Thanet District Council,23/06/2015,386448,589.78,,Adecco Uk Ltd,ADE005,Chief Executive,Revenue,Agency Staff,Human Resources
http://thanet.gov.uk/supplierspend,Thanet District Council,23/06/2015,386449,470.23,,Adecco Uk Ltd,ADE005,Chief Executive,Revenue,Agency Staff,Human Resources
http://thanet.gov.uk/supplierspend,Thanet District Council,23/06/2015,386417,484.00,,All Access Ltd,ALL031,Community Services,Revenue,Services,Building Construction Material
http://thanet.gov.uk/supplierspend,Thanet District Council,23/06/2015,387311,564.44,,Allstar Business Solutions Ltd,ALL038,Operational Services,Revenue,Direct Transport Costs,Vehicle Management
http://thanet.gov.uk/supplierspend,Thanet District Council,23/06/2015,386319,427.50,,Andy Morris,MOR028,Community Services,Revenue,Services,Arts And Leisure Services
http://thanet.gov.uk/supplierspend,Thanet District Council,23/06/2015,386320,345.00,,Andy Morris,MOR028,Community Services,Revenue,Services,Arts And Leisure Services
http://thanet.gov.uk/supplierspend,Thanet District Council,23/06/2015,387337,12745.00,,Ascendit Lifts Ltd,ASC001,Corporate Resources and S151,Balance Sheet,Capital Exp-Non Council Assets,Grants
http://thanet.gov.uk/supplierspend,Thanet District Council,23/06/2015,386508,2500.00,,Bonnar Keenlyside,BON011,Community Services,Revenue,Services,Consultancy
http://thanet.gov.uk/supplierspend,Thanet District Council,23/06/2015,386032,1272.00,,Business Computer Solutions Ltd,BUS002,Community Services,Revenue,Communications & Computing,ICT
http://thanet.gov.uk/supplierspend,Thanet District Council,23/06/2015,386031,6318.90,,Bytes Software Services Limited,BYT001,East Kent Shared Services,Revenue,Communications & Computing,ICT
http://thanet.gov.uk/supplierspend,Thanet District Council,23/06/2015,386428,-1600.00,,Bytes Software Services Limited,BYT001,East Kent Shared Services,Revenue,Communications & Computing,ICT
http://thanet.gov.uk/supplierspend,Thanet District Council,23/06/2015,386878,1600.00,,Bytes Software Services Limited,BYT001,East Kent Shared Services,Revenue,Communications & Computing,ICT
http://thanet.gov.uk/supplierspend,Thanet District Council,23/06/2015,386396,367.80,,Canon (Uk) Ltd,CAN021,Community Services,Revenue,"Print, Stat And Gen Off Exps",Facilities And Mangement Serv
http://thanet.gov.uk/supplierspend,Thanet District Council,23/06/2015,386422,1943.33,,Canon (Uk) Ltd,CAN021,Community Services,Revenue,"Equip, Furniture And Materials",Facilities And Mangement Serv
http://thanet.gov.uk/supplierspend,Thanet District Council,23/06/2015,386788,681.30,,Carol Peters,PET003,Community Services,Revenue,Services,Agency Payments
http://thanet.gov.uk/supplierspend,Thanet District Council,23/06/2015,386794,319.55,,Channel Commercials Plc,CCO001,Operational Services,Revenue,Direct Transport Costs,Vehicle Management
http://thanet.gov.uk/supplierspend,Thanet District Council,23/06/2015,386768,3610.00,,Civica Uk Ltd,CIV003,Corporate Resources and S151,Revenue,Communications & Computing,ICT
http://thanet.gov.uk/supplierspend,Thanet District Council,23/06/2015,386769,1950.00,,Civica Uk Ltd,CIV003,Corporate Resources and S151,Revenue,Communications & Computing,ICT
http://thanet.gov.uk/supplierspend,Thanet District Council,23/06/2015,386483,392.40,,Cobalt Telephone Technologies Ltd,COB002,Operational Services,Revenue,Communications & Computing,ICT
http://thanet.gov.uk/supplierspend,Thanet District Council,23/06/2015,386497,1641.70,,Cobalt Telephone Technologies Ltd,COB002,Operational Services,Revenue,Services,ICT
http://thanet.gov.uk/supplierspend,Thanet District Council,23/06/2015,386477,2675.00,,Commercial Services Trading Ltd,COM048,Operational Services,Revenue,Cont Hire & Operating Lease,Various Cats-Public Sector
http://thanet.gov.uk/supplierspend,Thanet District Council,23/06/2015,386478,4006.23,,Commercial Services Trading Ltd,COM048,Community Services,Revenue,Cont Hire & Operating Lease,Various Cats-Public Sector
http://thanet.gov.uk/supplierspend,Thanet District Council,23/06/2015,386503,-2263.39,,Commercial Services Trading Ltd,COM048,Corporate Resources and S151,Revenue,Cont Hire & Operating Lease,Various Cats-Public Sector
http://thanet.gov.uk/supplierspend,Thanet District Council,23/06/2015,386323,484.00,,Disclosure And Barring Service,DIS017,Community Services,Revenue,"Equip, Furniture And Materials",Human Resources
http://thanet.gov.uk/supplierspend,Thanet District Council,23/06/2015,387336,2312.86,,East Kent Electrical Limited,EAS020,Corporate Resources and S151,Balance Sheet,Capital Exp-Non Council Assets,Grants
http://thanet.gov.uk/supplierspend,Thanet District Council,23/06/2015,386285,7289.00,,Eastern Compressors  Limited,EAS021,Corporate Resources and S151,Balance Sheet,Other Land And Buildings-Hra,Construction-Repair And Maint
http://thanet.gov.uk/supplierspend,Thanet District Council,23/06/2015,386496,1500.00,,Enviro Technology Services Plc,ENV004,Community Services,Revenue,"Equip, Furniture And Materials",Environmental Services
http://thanet.gov.uk/supplierspend,Thanet District Council,23/06/2015,386318,481.64,,Evergreen Landscaping Gardening Ltd,EVE004,Community Services,Revenue,Grounds Mtce Costs,Horticultural
http://thanet.gov.uk/supplierspend,Thanet District Council,23/06/2015,387339,672.00,,Evermech Services Ltd,EVE011,Corporate Resources and S151,Balance Sheet,Capital Exp-Non Council Assets,Grants
http://thanet.gov.uk/supplierspend,Thanet District Council,23/06/2015,387338,2377.00,,Family Mosaic Housing,FAM001,Corporate Resources and S151,Balance Sheet,Capital Exp-Non Council Assets,Housing Management
http://thanet.gov.uk/supplierspend,Thanet District Council,23/06/2015,387340,810.40,,Family Mosaic Housing,FAM001,Corporate Resources and S151,Balance Sheet,Capital Exp-Non Council Assets,Housing Management
http://thanet.gov.uk/supplierspend,Thanet District Council,23/06/2015,387341,1022.85,,Family Mosaic Housing,FAM001,Corporate Resources and S151,Balance Sheet,Capital Exp-Non Council Assets,Housing Management
http://thanet.gov.uk/supplierspend,Thanet District Council,23/06/2015,386344,750.00,,Florence Court Hotel,FLO003,Community Services,Revenue,Services,Housing Management
http://thanet.gov.uk/supplierspend,Thanet District Council,23/06/2015,386345,930.00,,Florence Court Hotel,FLO003,Community Services,Revenue,Services,Housing Management
http://thanet.gov.uk/supplierspend,Thanet District Council,23/06/2015,386346,495.00,,Florence Court Hotel,FLO003,Community Services,Revenue,Services,Housing Management
http://thanet.gov.uk/supplierspend,Thanet District Council,23/06/2015,386843,13973.00,,Fox Property Solutions Limited,FOX010,Corporate Resources and S151,Balance Sheet,Rechargeable Works,Environmental Services
http://thanet.gov.uk/supplierspend,Thanet District Council,23/06/2015,386516,4620.00,,Gatenbysanderson Ltd,GAT002,Corporate Resources and S151,Revenue,Services,Human Resources
http://thanet.gov.uk/supplierspend,Thanet District Council,23/06/2015,386499,983.40,,Hi Way Services Ltd,HIW002,Operational Services,Revenue,"Repairs,  Alter & Mtce - Build",Highway Equipment And Material
http://thanet.gov.uk/supplierspend,Thanet District Council,23/06/2015,385359,9746.27,,Hr Go Recruitment Ltd,HRG002,Operational Services,Revenue,Agency Staff,Human Resources
http://thanet.gov.uk/supplierspend,Thanet District Council,23/06/2015,386459,981.75,,Hr Go Recruitment Ltd,HRG002,Operational Services,Revenue,Agency Staff,Human Resources
http://thanet.gov.uk/supplierspend,Thanet District Council,23/06/2015,386874,1542.92,,Hr Go Recruitment Ltd,HRG002,Operational Services,Revenue,Agency Staff,Human Resources
http://thanet.gov.uk/supplierspend,Thanet District Council,23/06/2015,386875,840.23,,Hr Go Recruitment Ltd,HRG002,Operational Services,Revenue,Agency Staff,Human Resources
http://thanet.gov.uk/supplierspend,Thanet District Council,23/06/2015,386879,389.15,,Hr Go Recruitment Ltd,HRG002,Operational Services,Revenue,Agency Staff,Human Resources
http://thanet.gov.uk/supplierspend,Thanet District Council,23/06/2015,386884,4236.14,,Hr Go Recruitment Ltd,HRG002,Operational Services,Revenue,Agency Staff,Human Resources
http://thanet.gov.uk/supplierspend,Thanet District Council,23/06/2015,386885,4133.97,,Hr Go Recruitment Ltd,HRG002,Operational Services,Revenue,Agency Staff,Human Resources
http://thanet.gov.uk/supplierspend,Thanet District Council,23/06/2015,386959,9186.77,,Hr Go Recruitment Ltd,HRG002,Operational Services,Revenue,Agency Staff,Human Resources
http://thanet.gov.uk/supplierspend,Thanet District Council,23/06/2015,386462,700.00,,Ifzw Maintenance Ltd,IFZ001,Operational Services,Revenue,"Equip, Furniture And Materials",Cemetery And Crematorium
http://thanet.gov.uk/supplierspend,Thanet District Council,23/06/2015,387342,250.00,,John Nee,NEE002,Corporate Resources and S151,Revenue,Services,Legal Services
http://thanet.gov.uk/supplierspend,Thanet District Council,23/06/2015,386784,1500.00,,Jump It Recruitment Solutions Ltd,JUM001,East Kent Shared Services,Revenue,Agency Staff,Human Resources
http://thanet.gov.uk/supplierspend,Thanet District Council,23/06/2015,386785,1686.25,,Jump It Recruitment Solutions Ltd,JUM001,East Kent Shared Services,Revenue,Agency Staff,Human Resources
http://thanet.gov.uk/supplierspend,Thanet District Council,23/06/2015,387103,255.00,,Kavanagh Motor Group Limited,KAV002,Operational Services,Revenue,Direct Transport Costs,Vehicle Management
http://thanet.gov.uk/supplierspend,Thanet District Council,23/06/2015,386446,870.00,,Kent County Council,KCC002,East Kent Shared Services,Revenue,Training,Various Cats-Public Sector
http://thanet.gov.uk/supplierspend,Thanet District Council,23/06/2015,386723,300.00,,Kent County Council,KCC002,Corporate Resources and S151,Balance Sheet,Other Land And Buildings-Hra,Various Cats-Public Sector
http://thanet.gov.uk/supplierspend,Thanet District Council,23/06/2015,386703,405.60,,Lyreco Uk Limited,LYR001,Community Services,Revenue,"Equip, Furniture And Materials",Stationery
http://thanet.gov.uk/supplierspend,Thanet District Council,23/06/2015,386703,25.65,,Lyreco Uk Limited,LYR001,Community Services,Revenue,"Print, Stat And Gen Off Exps",Stationery
http://thanet.gov.uk/supplierspend,Thanet District Council,23/06/2015,386703,1.29,,Lyreco Uk Limited,LYR001,Operational Services,Revenue,"Equip, Furniture And Materials",Stationery
http://thanet.gov.uk/supplierspend,Thanet District Council,23/06/2015,386329,1798.50,,Mears Ltd,MEA003,Corporate Resources and S151,Balance Sheet,Repairs And Mtce Holding A/C,Construction-Repair And Maint
http://thanet.gov.uk/supplierspend,Thanet District Council,23/06/2015,386437,10557.99,,Mears Ltd,MEA003,Corporate Resources and S151,Balance Sheet,Repairs And Mtce Holding A/C,Construction-Repair And Maint
http://thanet.gov.uk/supplierspend,Thanet District Council,23/06/2015,386578,860.98,,Mears Ltd,MEA003,Community Services,Revenue,"Repairs,  Alter & Mtce - Build",Construction-Repair And Maint
http://thanet.gov.uk/supplierspend,Thanet District Council,23/06/2015,386712,8213.54,,Mears Ltd,MEA003,Corporate Resources and S151,Balance Sheet,Repairs And Mtce Holding A/C,Construction-Repair And Maint
http://thanet.gov.uk/supplierspend,Thanet District Council,23/06/2015,386713,9372.00,,Mears Ltd,MEA003,Corporate Resources and S151,Balance Sheet,Repairs And Mtce Holding A/C,Construction-Repair And Maint
http://thanet.gov.uk/supplierspend,Thanet District Council,23/06/2015,386714,6581.92,,Mears Ltd,MEA003,Corporate Resources and S151,Balance Sheet,Repairs And Mtce Holding A/C,Construction-Repair And Maint
http://thanet.gov.uk/supplierspend,Thanet District Council,23/06/2015,386715,759.82,,Mears Ltd,MEA003,Corporate Resources and S151,Balance Sheet,Repairs And Mtce Holding A/C,Construction-Repair And Maint
http://thanet.gov.uk/supplierspend,Thanet District Council,23/06/2015,386790,566.52,,Mears Ltd,MEA003,Community Services,Revenue,"Repairs,  Alter & Mtce - Build",Construction-Repair And Maint
http://thanet.gov.uk/supplierspend,Thanet District Council,23/06/2015,386841,253.09,,Mears Ltd,MEA003,Community Services,Revenue,"Repairs,  Alter & Mtce - Build",Construction-Repair And Maint
http://thanet.gov.uk/supplierspend,Thanet District Council,23/06/2015,386860,54389.38,,Mears Ltd,MEA003,Corporate Resources and S151,Balance Sheet,Repairs And Mtce Holding A/C,Construction-Repair And Maint
http://thanet.gov.uk/supplierspend,Thanet District Council,23/06/2015,387298,19573.08,,Mears Ltd,MEA003,Corporate Resources and S151,Balance Sheet,Repairs And Mtce Holding A/C,Construction-Repair And Maint
http://thanet.gov.uk/supplierspend,Thanet District Council,23/06/2015,386460,1349.75,,Med Clean South Ltd,MED015,Operational Services,Revenue,"Repairs,  Alter & Mtce - Build",Cleaning And Janitorial
http://thanet.gov.uk/supplierspend,Thanet District Council,23/06/2015,386461,5596.03,,Med Clean South Ltd,MED015,Operational Services,Revenue,Cleaning & Domestic Supplies,Cleaning And Janitorial
http://thanet.gov.uk/supplierspend,Thanet District Council,23/06/2015,386718,1320.00,,Michael Page Int Recruitment Ltd,PAG008,Corporate Resources and S151,Revenue,Services,Human Resources
http://thanet.gov.uk/supplierspend,Thanet District Council,23/06/2015,383205,8715.25,,Midland Software Limited,MID013,East Kent Shared Services,Revenue,Communications & Computing,ICT
http://thanet.gov.uk/supplierspend,Thanet District Council,23/06/2015,387343,315.00,,Minters Of Deal,MIN004,Community Services,Revenue,"Repairs,  Alter & Mtce - Build",Facilities And Mangement Serv
http://thanet.gov.uk/supplierspend,Thanet District Council,23/06/2015,387194,900.00,,Mr Conor Mccarthy,MCC014,Operational Services,Revenue,Services,Legal Services
http://thanet.gov.uk/supplierspend,Thanet District Council,23/06/2015,386288,33500.00,,Mr D M Littleboy,LIT007,Corporate Resources and S151,Balance Sheet,Plant And Equipment,Arts And Leisure Services
http://thanet.gov.uk/supplierspend,Thanet District Council,23/06/2015,387344,500.00,,Mr Paul Tapsell,TAP002,Community Services,Revenue,Services,Legal Services
http://thanet.gov.uk/supplierspend,Thanet District Council,23/06/2015,386711,365.00,,Mrs K Hooper,HOO004,Chief Executive,Revenue,Services,Consultancy
http://thanet.gov.uk/supplierspend,Thanet District Council,23/06/2015,386408,1010.10,,Palmstead Nurseries Ltd,PAL015,Corporate Resources and S151,Balance Sheet,Capital Exp-Non Council Assets,Horticultural
http://thanet.gov.uk/supplierspend,Thanet District Council,23/06/2015,385956,6160.58,,Probrand Ltd,PRO012,East Kent Shared Services,Revenue,Communications & Computing,ICT
http://thanet.gov.uk/supplierspend,Thanet District Council,23/06/2015,386338,805.00,,R Cannon,CAN007,Operational Services,Revenue,Services,Maritime Services
http://thanet.gov.uk/supplierspend,Thanet District Council,23/06/2015,386770,1310.00,,Rackspace Limited,RAC006,East Kent Shared Services,Revenue,Communications & Computing,ICT
http://thanet.gov.uk/supplierspend,Thanet District Council,23/06/2015,386486,400.00,,Rippleffect,RIP001,Community Services,Revenue,Communications & Computing,ICT
http://thanet.gov.uk/supplierspend,Thanet District Council,23/06/2015,386072,4735.86,,Royal Mail,ROY004,Community Services,Revenue,Communications & Computing,Mail Services
http://thanet.gov.uk/supplierspend,Thanet District Council,23/06/2015,386514,425.00,,Sba Ltd,SBA001,Operational Services,Revenue,"Clothes, Uniforms & Laundry",Clothing
http://thanet.gov.uk/supplierspend,Thanet District Council,23/06/2015,386469,228.64,,Seasafe Systems Ltd,SEA004,Operational Services,Revenue,"Clothes, Uniforms & Laundry",Clothing
http://thanet.gov.uk/supplierspend,Thanet District Council,23/06/2015,386473,900.00,,Sellick Partnership Ltd,SEL011,Community Services,Revenue,Services,Human Resources
http://thanet.gov.uk/supplierspend,Thanet District Council,23/06/2015,386579,834.05,,Sellick Partnership Ltd,SEL011,Corporate Resources and S151,Revenue,Agency Staff,Human Resources
http://thanet.gov.uk/supplierspend,Thanet District Council,23/06/2015,386463,1120.00,,Sjr Pm Solutions Limited,SJR001,East Kent Shared Services,Revenue,Services,ICT
http://thanet.gov.uk/supplierspend,Thanet District Council,23/06/2015,386574,1400.00,,Sjr Pm Solutions Limited,SJR001,East Kent Shared Services,Revenue,Services,ICT
http://thanet.gov.uk/supplierspend,Thanet District Council,23/06/2015,387334,6717.00,,South East Building Company Limited,SEB001,Corporate Resources and S151,Balance Sheet,Capital Exp-Non Council Assets,Grants
http://thanet.gov.uk/supplierspend,Thanet District Council,23/06/2015,386309,415.00,,South East Netting Limited,SOU016,Operational Services,Revenue,"Repairs,  Alter & Mtce - Build",Building Construction Material
http://thanet.gov.uk/supplierspend,Thanet District Council,23/06/2015,386940,218.16,,Sparshatts Of Kent Ltd,SPA008,Operational Services,Revenue,Direct Transport Costs,Vehicle Management
http://thanet.gov.uk/supplierspend,Thanet District Council,23/06/2015,386017,9371.98,,Spider Project Management Ltd,SPI009,Corporate Resources and S151,Balance Sheet,Investment Property For Lease,Consultancy
http://thanet.gov.uk/supplierspend,Thanet District Council,23/06/2015,386722,275.00,,St Andrews Church,STA030,Corporate Resources and S151,Revenue,Rents,Facilities And Mangement Serv
http://thanet.gov.uk/supplierspend,Thanet District Council,23/06/2015,386953,13872.00,,Straight Manufacturing Limited,STR038,Operational Services,Revenue,"Equip, Furniture And Materials",Environmental Services
http://thanet.gov.uk/supplierspend,Thanet District Council,23/06/2015,386780,879.00,,Streetmaster (S.Wales) Limited,STR001,Operational Services,Revenue,"Equip, Furniture And Materials",Highway Equipment And Material
http://thanet.gov.uk/supplierspend,Thanet District Council,23/06/2015,386781,302.00,,Streetmaster (S.Wales) Limited,STR001,Operational Services,Revenue,"Equip, Furniture And Materials",Highway Equipment And Material
http://thanet.gov.uk/supplierspend,Thanet District Council,23/06/2015,386782,773.00,,Streetmaster (S.Wales) Limited,STR001,Operational Services,Revenue,"Equip, Furniture And Materials",Highway Equipment And Material
http://thanet.gov.uk/supplierspend,Thanet District Council,23/06/2015,386000,400.00,,Surface 2 Air Media Limited,SUR016,Community Services,Revenue,Services,Facilities And Mangement Serv
http://thanet.gov.uk/supplierspend,Thanet District Council,23/06/2015,385810,2337.97,,Swale Heating Ltd,SWA006,Corporate Resources and S151,Balance Sheet,Repairs And Mtce Holding A/C,Building Construction Material
http://thanet.gov.uk/supplierspend,Thanet District Council,23/06/2015,385811,1927.88,,Swale Heating Ltd,SWA006,Corporate Resources and S151,Balance Sheet,Repairs And Mtce Holding A/C,Building Construction Material
http://thanet.gov.uk/supplierspend,Thanet District Council,23/06/2015,385813,1427.68,,Swale Heating Ltd,SWA006,Corporate Resources and S151,Balance Sheet,Repairs And Mtce Holding A/C,Building Construction Material
http://thanet.gov.uk/supplierspend,Thanet District Council,23/06/2015,385814,1427.68,,Swale Heating Ltd,SWA006,Corporate Resources and S151,Balance Sheet,Repairs And Mtce Holding A/C,Building Construction Material
http://thanet.gov.uk/supplierspend,Thanet District Council,23/06/2015,385816,1427.68,,Swale Heating Ltd,SWA006,Corporate Resources and S151,Balance Sheet,Repairs And Mtce Holding A/C,Building Construction Material
http://thanet.gov.uk/supplierspend,Thanet District Council,23/06/2015,385817,1427.68,,Swale Heating Ltd,SWA006,Corporate Resources and S151,Balance Sheet,Repairs And Mtce Holding A/C,Building Construction Material
http://thanet.gov.uk/supplierspend,Thanet District Council,23/06/2015,385818,1689.93,,Swale Heating Ltd,SWA006,Corporate Resources and S151,Balance Sheet,Repairs And Mtce Holding A/C,Building Construction Material
http://thanet.gov.uk/supplierspend,Thanet District Council,23/06/2015,385820,1558.30,,Swale Heating Ltd,SWA006,Corporate Resources and S151,Balance Sheet,Repairs And Mtce Holding A/C,Building Construction Material
http://thanet.gov.uk/supplierspend,Thanet District Council,23/06/2015,385821,1831.70,,Swale Heating Ltd,SWA006,Corporate Resources and S151,Balance Sheet,Repairs And Mtce Holding A/C,Building Construction Material
http://thanet.gov.uk/supplierspend,Thanet District Council,23/06/2015,385823,1689.93,,Swale Heating Ltd,SWA006,Corporate Resources and S151,Balance Sheet,Repairs And Mtce Holding A/C,Building Construction Material
http://thanet.gov.uk/supplierspend,Thanet District Council,23/06/2015,385824,1927.88,,Swale Heating Ltd,SWA006,Corporate Resources and S151,Balance Sheet,Repairs And Mtce Holding A/C,Building Construction Material
http://thanet.gov.uk/supplierspend,Thanet District Council,23/06/2015,385825,1689.93,,Swale Heating Ltd,SWA006,Corporate Resources and S151,Balance Sheet,Repairs And Mtce Holding A/C,Building Construction Material
http://thanet.gov.uk/supplierspend,Thanet District Council,23/06/2015,385827,1558.30,,Swale Heating Ltd,SWA006,Corporate Resources and S151,Balance Sheet,Repairs And Mtce Holding A/C,Building Construction Material
http://thanet.gov.uk/supplierspend,Thanet District Council,23/06/2015,385828,1831.70,,Swale Heating Ltd,SWA006,Corporate Resources and S151,Balance Sheet,Repairs And Mtce Holding A/C,Building Construction Material
http://thanet.gov.uk/supplierspend,Thanet District Council,23/06/2015,385829,1927.88,,Swale Heating Ltd,SWA006,Corporate Resources and S151,Balance Sheet,Repairs And Mtce Holding A/C,Building Construction Material
http://thanet.gov.uk/supplierspend,Thanet District Council,23/06/2015,385830,1927.88,,Swale Heating Ltd,SWA006,Corporate Resources and S151,Balance Sheet,Repairs And Mtce Holding A/C,Building Construction Material
http://thanet.gov.uk/supplierspend,Thanet District Council,23/06/2015,385831,1427.68,,Swale Heating Ltd,SWA006,Corporate Resources and S151,Balance Sheet,Repairs And Mtce Holding A/C,Building Construction Material
http://thanet.gov.uk/supplierspend,Thanet District Council,23/06/2015,385834,2199.64,,Swale Heating Ltd,SWA006,Corporate Resources and S151,Balance Sheet,Repairs And Mtce Holding A/C,Building Construction Material
http://thanet.gov.uk/supplierspend,Thanet District Council,23/06/2015,385835,1927.88,,Swale Heating Ltd,SWA006,Corporate Resources and S151,Balance Sheet,Repairs And Mtce Holding A/C,Building Construction Material
http://thanet.gov.uk/supplierspend,Thanet District Council,23/06/2015,386095,1427.68,,Swale Heating Ltd,SWA006,Corporate Resources and S151,Balance Sheet,Repairs And Mtce Holding A/C,Building Construction Material
http://thanet.gov.uk/supplierspend,Thanet District Council,23/06/2015,386096,1826.63,,Swale Heating Ltd,SWA006,Corporate Resources and S151,Balance Sheet,Repairs And Mtce Holding A/C,Building Construction Material
http://thanet.gov.uk/supplierspend,Thanet District Council,23/06/2015,386097,1796.25,,Swale Heating Ltd,SWA006,Corporate Resources and S151,Balance Sheet,Repairs And Mtce Holding A/C,Building Construction Material
http://thanet.gov.uk/supplierspend,Thanet District Council,23/06/2015,386098,1701.01,,Swale Heating Ltd,SWA006,Corporate Resources and S151,Balance Sheet,Repairs And Mtce Holding A/C,Building Construction Material
http://thanet.gov.uk/supplierspend,Thanet District Council,23/06/2015,386099,1689.93,,Swale Heating Ltd,SWA006,Corporate Resources and S151,Balance Sheet,Repairs And Mtce Holding A/C,Building Construction Material
http://thanet.gov.uk/supplierspend,Thanet District Council,23/06/2015,386100,1932.95,,Swale Heating Ltd,SWA006,Corporate Resources and S151,Balance Sheet,Repairs And Mtce Holding A/C,Building Construction Material
http://thanet.gov.uk/supplierspend,Thanet District Council,23/06/2015,386101,1927.88,,Swale Heating Ltd,SWA006,Corporate Resources and S151,Balance Sheet,Repairs And Mtce Holding A/C,Building Construction Material
http://thanet.gov.uk/supplierspend,Thanet District Council,23/06/2015,386365,25133.94,,Swale Heating Ltd,SWA006,Corporate Resources and S151,Balance Sheet,Repairs And Mtce Holding A/C,Building Construction Material
http://thanet.gov.uk/supplierspend,Thanet District Council,23/06/2015,386430,410.00,,Swale Heating Ltd,SWA006,Corporate Resources and S151,Balance Sheet,Repairs And Mtce Holding A/C,Building Construction Material
http://thanet.gov.uk/supplierspend,Thanet District Council,23/06/2015,386433,1106.00,,Swale Heating Ltd,SWA006,Corporate Resources and S151,Balance Sheet,Repairs And Mtce Holding A/C,Building Construction Material
http://thanet.gov.uk/supplierspend,Thanet District Council,23/06/2015,386724,790.97,,Swale Heating Ltd,SWA006,Corporate Resources and S151,Balance Sheet,Repairs And Mtce Holding A/C,Building Construction Material
http://thanet.gov.uk/supplierspend,Thanet District Council,23/06/2015,386333,1593.97,,Tecalemit Garage Equipment Co Ltd,TEC010,Operational Services,Revenue,Direct Transport Costs,Vehicle Management
http://thanet.gov.uk/supplierspend,Thanet District Council,23/06/2015,386795,832.00,,Thanet Safe Limited,TSA004,Operational Services,Revenue,"Equip, Furniture And Materials",Facilities And Mangement Serv
http://thanet.gov.uk/supplierspend,Thanet District Council,23/06/2015,386282,537.55,,The Bell Brush Company,BEL018,Operational Services,Revenue,"Equip, Furniture And Materials",Cleaning And Janitorial
http://thanet.gov.uk/supplierspend,Thanet District Council,23/06/2015,386370,2395.83,,The Glenwood Hotel,GLE007,Community Services,Revenue,Services,Housing Management
http://thanet.gov.uk/supplierspend,Thanet District Council,23/06/2015,386524,3266.64,,The Glenwood Hotel,GLE007,Community Services,Revenue,Services,Housing Management
http://thanet.gov.uk/supplierspend,Thanet District Council,23/06/2015,387399,1555.00,,Titan Lifts Ltd,TIT006,Corporate Resources and S151,Balance Sheet,Capital Exp-Non Council Assets,Facilities And Mangement Serv
http://thanet.gov.uk/supplierspend,Thanet District Council,23/06/2015,386783,1250.00,,Toby Watkin,WAT022,Corporate Resources and S151,Balance Sheet,Other Land And Buildings-Hra,Legal Services
http://thanet.gov.uk/supplierspend,Thanet District Council,23/06/2015,386076,1495.00,,Tourism South East,TOU003,Community Services,Revenue,Miscellaneous Expenses,Human Resources
http://thanet.gov.uk/supplierspend,Thanet District Council,23/06/2015,386301,1666.67,,Tourism Works,TOU007,Community Services,Revenue,Services,Facilities And Mangement Serv
http://thanet.gov.uk/supplierspend,Thanet District Council,23/06/2015,386476,1497.30,,Tyco Fire & Integrated Sol (Uk) Ltd,TYC001,Community Services,Revenue,"Repairs,  Alter & Mtce - Build",Facilities And Mangement Serv
http://thanet.gov.uk/supplierspend,Thanet District Council,23/06/2015,386050,380.95,,Unibind Systems Ltd,UNI027,Community Services,Revenue,"Print, Stat And Gen Off Exps",Facilities And Mangement Serv
http://thanet.gov.uk/supplierspend,Thanet District Council,23/06/2015,386521,294.66,,Viridor Waste Management Ltd,VIR003,Community Services,Revenue,Cleaning & Domestic Supplies,Environmental Services
http://thanet.gov.uk/supplierspend,Thanet District Council,23/06/2015,386779,2380.00,,W Brazil & Bros,BRA001,Corporate Resources and S151,Balance Sheet,Other Land And Buildings-Hra,Environmental Services
http://thanet.gov.uk/supplierspend,Thanet District Council,26/06/2015,PC7006,5.30,,Aldi,N/A,Community Services,Revenue,Catering,Catering
http://thanet.gov.uk/supplierspend,Thanet District Council,26/06/2015,PC6935,285.00,,Alexander Motorcycles,N/A,Operational Services,Revenue,"Clothes, Uniforms & Laundry",Vehicle Management
http://thanet.gov.uk/supplierspend,Thanet District Council,26/06/2015,PC6885,10.50,1.75,Amazon,N/A,Operational Services,Revenue,"Equip, Furniture And Materials",Stationery
http://thanet.gov.uk/supplierspend,Thanet District Council,26/06/2015,PC6905,15.24,2.54,Amazon Eu,N/A,East Kent Shared Services,Revenue,"Equip, Furniture And Materials",Stationery
http://thanet.gov.uk/supplierspend,Thanet District Council,26/06/2015,PC6956,2.12,,Amazon Svcs Europe  Sar,N/A,East Kent Shared Services,Revenue,"Print, Stat And Gen Off Exps",Stationery
http://thanet.gov.uk/supplierspend,Thanet District Council,26/06/2015,PC6932,12.67,,Amazon Uk Retail,N/A,East Kent Shared Services,Revenue,"Print, Stat And Gen Off Exps",Stationery
http://thanet.gov.uk/supplierspend,Thanet District Council,26/06/2015,PC6976,16.11,,Amazon Uk Retail,N/A,Chief Executive,Revenue,"Print, Stat And Gen Off Exps",Stationery
http://thanet.gov.uk/supplierspend,Thanet District Council,26/06/2015,PC7019,12.32,,Amazon Uk Retail,N/A,East Kent Shared Services,Revenue,"Equip, Furniture And Materials",Stationery
http://thanet.gov.uk/supplierspend,Thanet District Council,26/06/2015,PC6943,5.54,,Argos,N/A,Community Services,Revenue,Fixtures & Fittings,Facilities And Management Serv
http://thanet.gov.uk/supplierspend,Thanet District Council,26/06/2015,PC6944,19.78,,Argos,N/A,Community Services,Revenue,"Equip, Furniture And Materials",Facilities And Management Serv
http://thanet.gov.uk/supplierspend,Thanet District Council,26/06/2015,PC6990,5.69,,Argos,N/A,Community Services,Revenue,Fixtures & Fittings,Facilities And Management Serv
http://thanet.gov.uk/supplierspend,Thanet District Council,26/06/2015,PC6991,35.61,,Argos,N/A,Community Services,Revenue,"Equip, Furniture And Materials",Facilities And Management Serv
http://thanet.gov.uk/supplierspend,Thanet District Council,26/06/2015,PC7009,23.26,3.88,Argos,N/A,Community Services,Revenue,"Equip, Furniture And Materials",Facilities And Management Serv
http://thanet.gov.uk/supplierspend,Thanet District Council,26/06/2015,PC6881,2.50,,Asda,N/A,Community Services,Revenue,"Equip, Furniture And Materials",Catering
http://thanet.gov.uk/supplierspend,Thanet District Council,26/06/2015,PC6972,12.20,2.04,Asda,N/A,Community Services,Revenue,Catering,Catering
http://thanet.gov.uk/supplierspend,Thanet District Council,26/06/2015,PC6911,-50.62,,B & Q,N/A,Corporate Resources and S151,Revenue,"Print, Stat And Gen Off Exps",Building Construction Material
http://thanet.gov.uk/supplierspend,Thanet District Council,26/06/2015,PC6929,26.68,4.45,B & Q,N/A,Operational Services,Revenue,"Equip, Furniture And Materials",Building Construction Material
http://thanet.gov.uk/supplierspend,Thanet District Council,26/06/2015,PC7001,16.00,2.67,B & Q,N/A,Operational Services,Revenue,"Repairs,  Alter & Mtce - Build",Building Construction Material
http://thanet.gov.uk/supplierspend,Thanet District Council,26/06/2015,PC6933,294.80,,Barriers Direct,N/A,Community Services,Revenue,"Equip, Furniture And Materials",Facilities And Management Serv
http://thanet.gov.uk/supplierspend,Thanet District Council,26/06/2015,PC6904,36.33,,Booker Ltd,N/A,Community Services,Revenue,Catering,Catering
http://thanet.gov.uk/supplierspend,Thanet District Council,26/06/2015,PC6960,23.29,,Booker Ltd,N/A,Chief Executive,Revenue,Catering,Catering
http://thanet.gov.uk/supplierspend,Thanet District Council,26/06/2015,PC6961,26.94,,Booker Ltd,N/A,Operational Services,Revenue,Catering,Catering
http://thanet.gov.uk/supplierspend,Thanet District Council,26/06/2015,PC6995,11.98,,Booker Ltd,N/A,Community Services,Revenue,Catering,Catering
http://thanet.gov.uk/supplierspend,Thanet District Council,26/06/2015,PC6996,13.98,,Booker Ltd,N/A,Community Services,Revenue,Catering,Catering
http://thanet.gov.uk/supplierspend,Thanet District Council,26/06/2015,PC7000,1.99,0.34,Boots,N/A,Community Services,Revenue,"Print, Stat And Gen Off Exps",Healthcare
http://thanet.gov.uk/supplierspend,Thanet District Council,26/06/2015,PC6938,29.36,,Cartridgepeople.co.uk,N/A,Community Services,Revenue,"Print, Stat And Gen Off Exps",Stationery
http://thanet.gov.uk/supplierspend,Thanet District Council,26/06/2015,PC6927,89.00,,CIEH,N/A,Community Services,Revenue,Expenses,Human Resources
http://thanet.gov.uk/supplierspend,Thanet District Council,26/06/2015,PC6997,46.49,,Comms Express,N/A,Community Services,Revenue,"Equip, Furniture And Materials",Facilities And Management Serv
http://thanet.gov.uk/supplierspend,Thanet District Council,26/06/2015,PC6899,155.00,,County Court Thanet,N/A,Community Services,Revenue,Services,Various Cats - Public Sector
http://thanet.gov.uk/supplierspend,Thanet District Council,26/06/2015,PC6924,170.00,,County Court Thanet,N/A,Community Services,Revenue,Services,Various Cats - Public Sector
http://thanet.gov.uk/supplierspend,Thanet District Council,26/06/2015,PC6930,400.00,,Datateam Business  Media - Parkworld,N/A,Community Services,Revenue,Miscellaneous Expenses,ICT
http://thanet.gov.uk/supplierspend,Thanet District Council,26/06/2015,PC6925,149.12,,Direct2U,N/A,Operational Services,Revenue,"Equip, Furniture And Materials",Facilities And Management Serv
http://thanet.gov.uk/supplierspend,Thanet District Council,26/06/2015,PC6940,65.00,,DVLA,N/A,Operational Services,Revenue,Direct Transport Costs,Various Cats - Public Sector
http://thanet.gov.uk/supplierspend,Thanet District Council,26/06/2015,PC6977,227.50,,DVLA,N/A,Operational Services,Revenue,Direct Transport Costs,Various Cats - Public Sector
http://thanet.gov.uk/supplierspend,Thanet District Council,26/06/2015,PC6978,227.50,,DVLA,N/A,Operational Services,Revenue,Direct Transport Costs,Various Cats - Public Sector
http://thanet.gov.uk/supplierspend,Thanet District Council,26/06/2015,PC6979,227.50,,DVLA,N/A,Operational Services,Revenue,Direct Transport Costs,Various Cats - Public Sector
http://thanet.gov.uk/supplierspend,Thanet District Council,26/06/2015,PC6980,227.50,,DVLA,N/A,Operational Services,Revenue,Direct Transport Costs,Various Cats - Public Sector
http://thanet.gov.uk/supplierspend,Thanet District Council,26/06/2015,PC6981,227.50,,DVLA,N/A,Operational Services,Revenue,Direct Transport Costs,Various Cats - Public Sector
http://thanet.gov.uk/supplierspend,Thanet District Council,26/06/2015,PC6982,227.50,,DVLA,N/A,Operational Services,Revenue,Direct Transport Costs,Various Cats - Public Sector
http://thanet.gov.uk/supplierspend,Thanet District Council,26/06/2015,PC6983,227.50,,DVLA,N/A,Operational Services,Revenue,Direct Transport Costs,Various Cats - Public Sector
http://thanet.gov.uk/supplierspend,Thanet District Council,26/06/2015,PC6984,227.50,,DVLA,N/A,Operational Services,Revenue,Direct Transport Costs,Various Cats - Public Sector
http://thanet.gov.uk/supplierspend,Thanet District Council,26/06/2015,PC6985,202.50,,DVLA,N/A,Operational Services,Revenue,Direct Transport Costs,Various Cats - Public Sector
http://thanet.gov.uk/supplierspend,Thanet District Council,26/06/2015,PC6986,202.50,,DVLA,N/A,Operational Services,Revenue,Direct Transport Costs,Various Cats - Public Sector
http://thanet.gov.uk/supplierspend,Thanet District Council,26/06/2015,PC6987,202.50,,DVLA,N/A,Operational Services,Revenue,Direct Transport Costs,Various Cats - Public Sector
http://thanet.gov.uk/supplierspend,Thanet District Council,26/06/2015,PC6988,167.50,,DVLA,N/A,Operational Services,Revenue,Direct Transport Costs,Various Cats - Public Sector
http://thanet.gov.uk/supplierspend,Thanet District Council,26/06/2015,PC7022,18.00,,Environment Agency Ltd,N/A,Operational Services,Revenue,Services,Various Cats - Public Sector
http://thanet.gov.uk/supplierspend,Thanet District Council,26/06/2015,PC6909,16.67,,EV Charging Elektromotive Uk,N/A,Community Services,Revenue,Direct Transport Costs,Vehicle Management
http://thanet.gov.uk/supplierspend,Thanet District Council,26/06/2015,PC6989,133.50,,EV Connectors Ltd,N/A,Operational Services,Revenue,"Equip, Furniture And Materials",Vehicle Management
http://thanet.gov.uk/supplierspend,Thanet District Council,26/06/2015,PC7003,23.87,,First Aid Specialist,N/A,East Kent Shared Services,Revenue,"Equip, Furniture And Materials",Healthcare
http://thanet.gov.uk/supplierspend,Thanet District Council,26/06/2015,PC6950,262.58,,Gemco Services Ltd,N/A,Operational Services,Revenue,Direct Transport Costs,Vehicle Management
http://thanet.gov.uk/supplierspend,Thanet District Council,26/06/2015,PC6962,34.71,,Geographers A-Z,N/A,Operational Services,Revenue,"Equip, Furniture And Materials",Stationery
http://thanet.gov.uk/supplierspend,Thanet District Council,26/06/2015,PC6963,34.71,,Geographers A-Z,N/A,Operational Services,Revenue,Communications & Computing,Stationery
http://thanet.gov.uk/supplierspend,Thanet District Council,26/06/2015,PC6964,34.71,,Geographers A-Z,N/A,Community Services,Revenue,"Print, Stat And Gen Off Exps",Stationery
http://thanet.gov.uk/supplierspend,Thanet District Council,26/06/2015,PC6965,34.71,,Geographers A-Z,N/A,Community Services,Revenue,"Print, Stat And Gen Off Exps",Stationery
http://thanet.gov.uk/supplierspend,Thanet District Council,26/06/2015,PC6942,16.20,,Greggs Margate,N/A,Community Services,Revenue,Catering,Catering
http://thanet.gov.uk/supplierspend,Thanet District Council,26/06/2015,PC7008,11.00,,Greggs Margate,N/A,Community Services,Revenue,Catering,Catering
http://thanet.gov.uk/supplierspend,Thanet District Council,26/06/2015,PC7027,3.25,,Greggs Margate,N/A,Community Services,Revenue,Catering,Catering
http://thanet.gov.uk/supplierspend,Thanet District Council,26/06/2015,PC6934,29.90,4.99,Hive.Co.Uk,N/A,East Kent Shared Services,Revenue,"Print, Stat And Gen Off Exps",Stationery
http://thanet.gov.uk/supplierspend,Thanet District Council,26/06/2015,PC6967,150.00,,HM Court,N/A,East Kent Shared Services,Revenue,Services,Various Cats - Public Sector
http://thanet.gov.uk/supplierspend,Thanet District Council,26/06/2015,PC6968,75.00,,HM Court,N/A,East Kent Shared Services,Revenue,Services,Various Cats - Public Sector
http://thanet.gov.uk/supplierspend,Thanet District Council,26/06/2015,PC6969,75.00,,HM Court,N/A,East Kent Shared Services,Revenue,Services,Various Cats - Public Sector
http://thanet.gov.uk/supplierspend,Thanet District Council,26/06/2015,PC7021,150.00,,HM Court,N/A,East Kent Shared Services,Revenue,Services,Various Cats - Public Sector
http://thanet.gov.uk/supplierspend,Thanet District Council,26/06/2015,PC6701,51.67,,Holiday Inn  Leicester,N/A,Corporate Resources and S151,Revenue,Training,Human Resources
http://thanet.gov.uk/supplierspend,Thanet District Council,26/06/2015,PC6939,42.99,,Kelsey Publishing Limited,N/A,Community Services,Revenue,"Print, Stat And Gen Off Exps",Financial Services
http://thanet.gov.uk/supplierspend,Thanet District Council,26/06/2015,PC6937,9.99,1.67,Magnifico,N/A,Community Services,Revenue,"Equip, Furniture And Materials",Stationery
http://thanet.gov.uk/supplierspend,Thanet District Council,26/06/2015,PC6799,-249.00,,MBL Seminars Ltd.,N/A,Corporate Resources and S151,Revenue,Expenses,Human Resources
http://thanet.gov.uk/supplierspend,Thanet District Council,26/06/2015,PC6918,110.00,,Possession Claims Online,N/A,Community Services,Revenue,Services,Various Cats - Public Sector
http://thanet.gov.uk/supplierspend,Thanet District Council,26/06/2015,PC6919,110.00,,Possession Claims Online,N/A,Community Services,Revenue,Services,Various Cats - Public Sector
http://thanet.gov.uk/supplierspend,Thanet District Council,26/06/2015,PC6921,250.00,,Possession Claims Online,N/A,Community Services,Revenue,Services,Various Cats - Public Sector
http://thanet.gov.uk/supplierspend,Thanet District Council,26/06/2015,PC6948,110.00,,Possession Claims Online,N/A,Community Services,Revenue,Services,Various Cats - Public Sector
http://thanet.gov.uk/supplierspend,Thanet District Council,26/06/2015,PC6949,110.00,,Possession Claims Online,N/A,Community Services,Revenue,Services,Various Cats - Public Sector
http://thanet.gov.uk/supplierspend,Thanet District Council,26/06/2015,PC6957,250.00,,Possession Claims Online,N/A,Community Services,Revenue,Services,Various Cats - Public Sector
http://thanet.gov.uk/supplierspend,Thanet District Council,26/06/2015,PC6941,282.50,,Post Office,N/A,Operational Services,Revenue,Direct Transport Costs,Mail Services
http://thanet.gov.uk/supplierspend,Thanet District Council,26/06/2015,PC6900,538.33,,Premier Inn Ltd,N/A,Community Services,Revenue,Services,Human Resources
http://thanet.gov.uk/supplierspend,Thanet District Council,26/06/2015,PC6953,35.14,,Rainbowsafety.Co.Uk,N/A,Community Services,Revenue,"Equip, Furniture And Materials",Facilities And Management Serv
http://thanet.gov.uk/supplierspend,Thanet District Council,26/06/2015,PC6945,54.66,,Shell Royal Oak,N/A,Operational Services,Revenue,"Equip, Furniture And Materials",Vehicle Management
http://thanet.gov.uk/supplierspend,Thanet District Council,26/06/2015,PC6879,230.00,38.34,Sidmouth Harbour Hotel,N/A,East Kent Shared Services,Revenue,Expenses,Human Resources
http://thanet.gov.uk/supplierspend,Thanet District Council,26/06/2015,PC6974,375.00,,Simply Safes Ltd,N/A,Operational Services,Revenue,"Equip, Furniture And Materials",Facilities And Management Serv
http://thanet.gov.uk/supplierspend,Thanet District Council,26/06/2015,PC6954,16.30,,Southeastern,N/A,Operational Services,Revenue,Public Transport,Human Resources
http://thanet.gov.uk/supplierspend,Thanet District Council,26/06/2015,PC6966,12.67,,Standfast Ltd,N/A,Community Services,Revenue,"Equip, Furniture And Materials",Facilities And Management Serv
http://thanet.gov.uk/supplierspend,Thanet District Council,26/06/2015,PC7026,2.60,,Tesco,N/A,Community Services,Revenue,Catering,Catering
http://thanet.gov.uk/supplierspend,Thanet District Council,26/06/2015,PC6992,78.00,,Tetrasoc,N/A,Operational Services,Revenue,"Equip, Furniture And Materials",Stationery
http://thanet.gov.uk/supplierspend,Thanet District Council,26/06/2015,PC6993,12.00,,Tetrasoc,N/A,Operational Services,Revenue,"Equip, Furniture And Materials",Stationery
http://thanet.gov.uk/supplierspend,Thanet District Council,26/06/2015,PC6970,110.00,,Thanet County Court,N/A,Community Services,Revenue,Services,Various Cats - Public Sector
http://thanet.gov.uk/supplierspend,Thanet District Council,26/06/2015,PC6971,280.00,,Thanet County Court,N/A,Community Services,Revenue,Services,Various Cats - Public Sector
http://thanet.gov.uk/supplierspend,Thanet District Council,26/06/2015,PC6973,80.00,,The Ratz Coffee Bar,N/A,Community Services,Revenue,Catering,Catering
http://thanet.gov.uk/supplierspend,Thanet District Council,26/06/2015,PC6901,18.83,,Toolstation Ltd,N/A,Community Services,Revenue,"Equip, Furniture And Materials",Building Construction Material
http://thanet.gov.uk/supplierspend,Thanet District Council,26/06/2015,PC6902,6.72,,Toolstation Ltd,N/A,East Kent Shared Services,Revenue,"Equip, Furniture And Materials",Building Construction Material
http://thanet.gov.uk/supplierspend,Thanet District Council,26/06/2015,PC6903,9.45,,Toolstation Ltd,N/A,East Kent Shared Services,Revenue,"Equip, Furniture And Materials",Building Construction Material
http://thanet.gov.uk/supplierspend,Thanet District Council,26/06/2015,PC6959,13.89,,Toolstation Ltd,N/A,Community Services,Revenue,"Equip, Furniture And Materials",Building Construction Material
http://thanet.gov.uk/supplierspend,Thanet District Council,26/06/2015,PC6955,33.29,,Trews,N/A,Operational Services,Revenue,"Clothes, Uniforms & Laundry",Clothing
http://thanet.gov.uk/supplierspend,Thanet District Council,26/06/2015,PC6958,11.00,,Tunbridge Certificate Centre,N/A,East Kent Shared Services,Revenue,Services,Various Cats - Public Sector
http://thanet.gov.uk/supplierspend,Thanet District Council,26/06/2015,PC6951,145.50,,TV Licence,N/A,East Kent Shared Services,Revenue,Services,Various Cats - Public Sector
http://thanet.gov.uk/supplierspend,Thanet District Council,26/06/2015,PC6896,159.00,,Vimeo,N/A,Community Services,Revenue,Fixtures & Fittings,Facilities And Management Serv
http://thanet.gov.uk/supplierspend,Thanet District Council,26/06/2015,PC6947,370.20,,Virgin Trains,N/A,Community Services,Revenue,Public Transport,Human Resources
http://thanet.gov.uk/supplierspend,Thanet District Council,26/06/2015,PC6906,76.90,,Webtis,N/A,East Kent Shared Services,Revenue,Public Transport,Human Resources
http://thanet.gov.uk/supplierspend,Thanet District Council,26/06/2015,PC6907,143.30,,Webtis,N/A,Corporate Resources and S151,Revenue,Public Transport,Human Resources
http://thanet.gov.uk/supplierspend,Thanet District Council,26/06/2015,PC6931,70.00,,Webtis,N/A,East Kent Shared Services,Revenue,Public Transport,Human Resources
http://thanet.gov.uk/supplierspend,Thanet District Council,26/06/2015,PC6936,37.30,,Webtis,N/A,Operational Services,Revenue,Public Transport,Human Resources
http://thanet.gov.uk/supplierspend,Thanet District Council,26/06/2015,PC6975,66.30,,Webtis,N/A,Chief Executive,Revenue,Public Transport,Human Resources
http://thanet.gov.uk/supplierspend,Thanet District Council,26/06/2015,PC6999,45.20,,Webtis,N/A,Corporate Resources and S151,Revenue,Public Transport,Human Resources
http://thanet.gov.uk/supplierspend,Thanet District Council,26/06/2015,PC6926,8.00,1.34,Wilko,N/A,Operational Services,Revenue,"Equip, Furniture And Materials",Facilities And Management Serv
http://thanet.gov.uk/supplierspend,Thanet District Council,26/06/2015,PC6946,28.00,,Wilko,N/A,Operational Services,Revenue,"Equip, Furniture And Materials",Facilities And Management Serv
http://thanet.gov.uk/supplierspend,Thanet District Council,26/06/2015,PC6952,8.79,,Wordery Eu,N/A,East Kent Shared Services,Revenue,"Print, Stat And Gen Off Exps",Stationery
http://thanet.gov.uk/supplierspend,Thanet District Council,26/06/2015,PC7002,52.83,,Zen Internet Ltd,N/A,Operational Services,Revenue,Communications & Computing,ICT
http://thanet.gov.uk/supplierspend,Thanet District Council,29/06/2015,387653,1456.44,,Co-Operative Bank Paypoint,COO018,Corporate Resources and S151,Revenue,Services,Financial Services
http://thanet.gov.uk/supplierspend,Thanet District Council,29/06/2015,387653,485.48,,Co-Operative Bank Paypoint,COO018,Community Services,Revenue,Services,Financial Services
http://thanet.gov.uk/supplierspend,Thanet District Council,29/06/2015,387631,94016.71,,Dexia Public Finance Bank,DEX001,Corporate Resources and S151,Balance Sheet,Debit Interest And Expenses,Investments And Loans
http://thanet.gov.uk/supplierspend,Thanet District Council,29/06/2015,387633,468.00,,H M Land Registry,HML002,Community Services,Revenue,Services,Government Agencies
http://thanet.gov.uk/supplierspend,Thanet District Council,29/06/2015,387633,-10.00,,H M Land Registry,HML002,East Kent Shared Services,Revenue,Services,Government Agencies
http://thanet.gov.uk/supplierspend,Thanet District Council,29/06/2015,387635,588.00,,H M Land Registry,HML002,Community Services,Revenue,Services,Government Agencies
http://thanet.gov.uk/supplierspend,Thanet District Council,29/06/2015,387635,6.00,,H M Land Registry,HML002,Operational Services,Revenue,Services,Government Agencies
http://thanet.gov.uk/supplierspend,Thanet District Council,29/06/2015,387635,24.00,,H M Land Registry,HML002,East Kent Shared Services,Revenue,Services,Government Agencies
http://thanet.gov.uk/supplierspend,Thanet District Council,29/06/2015,387643,278477.19,,Maidstone Borough Council,MAI002,Corporate Resources and S151,Balance Sheet,Collection Fund,Various Cats-Public Sector
http://thanet.gov.uk/supplierspend,Thanet District Council,29/06/2015,387643,769948.20,,Maidstone Borough Council,MAI002,Corporate Resources and S151,Balance Sheet,Revenue Financing,Various Cats-Public Sector
http://thanet.gov.uk/supplierspend,Thanet District Council,29/06/2015,387652,265.83,,Nat West Bank,NWE001,Corporate Resources and S151,Revenue,Services,Various Categories
http://thanet.gov.uk/supplierspend,Thanet District Council,29/06/2015,387658,871.20,,Nat West Bank,NWE001,East Kent Shared Services,Revenue,Services,Various Categories
http://thanet.gov.uk/supplierspend,Thanet District Council,29/06/2015,387659,2600.09,,Nat West Bank,NWE001,Corporate Resources and S151,Revenue,Services,Various Categories
http://thanet.gov.uk/supplierspend,Thanet District Council,29/06/2015,387654,848.66,,Santander,SAN017,Corporate Resources and S151,Balance Sheet,Services,Various Categories
http://thanet.gov.uk/supplierspend,Thanet District Council,29/06/2015,387655,1834.21,,Santander,SAN017,Corporate Resources and S151,Balance Sheet,Services,Various Categories
http://thanet.gov.uk/supplierspend,Thanet District Council,29/06/2015,387655,611.41,,Santander,SAN017,Community Services,Revenue,Services,Various Categories
http://thanet.gov.uk/supplierspend,Thanet District Council,29/06/2015,387646,676.47,,Worldpay Ltd,WOR008,Corporate Resources and S151,Revenue,Services,Financial Services
http://thanet.gov.uk/supplierspend,Thanet District Council,29/06/2015,387648,578.91,,Worldpay Ltd,WOR008,Operational Services,Revenue,Services,Financial Services
http://thanet.gov.uk/supplierspend,Thanet District Council,29/06/2015,387649,2160.05,,Worldpay Ltd,WOR008,Corporate Resources and S151,Revenue,Services,Financial Services
http://thanet.gov.uk/supplierspend,Thanet District Council,29/06/2015,387650,2674.11,,Worldpay Ltd,WOR008,Corporate Resources and S151,Revenue,Services,Financial Services
http://thanet.gov.uk/supplierspend,Thanet District Council,30/06/2015,386891,589.78,,Adecco Uk Ltd,ADE005,Chief Executive,Revenue,Agency Staff,Human Resources
http://thanet.gov.uk/supplierspend,Thanet District Council,30/06/2015,387320,589.78,,Adecco Uk Ltd,ADE005,Chief Executive,Revenue,Agency Staff,Human Resources
http://thanet.gov.uk/supplierspend,Thanet District Council,30/06/2015,387758,648.80,,Allstar Business Solutions Ltd,ALL038,Operational Services,Revenue,Direct Transport Costs,Vehicle Management
http://thanet.gov.uk/supplierspend,Thanet District Council,30/06/2015,387160,800.00,,Aquasentry,AQU006,Community Services,Revenue,"Repairs,  Alter & Mtce - Build",Construction-Repair And Maint
http://thanet.gov.uk/supplierspend,Thanet District Council,30/06/2015,387164,210.00,,Astra Uk (Contracts) Ltd,AST003,Operational Services,Revenue,Cleaning & Domestic Supplies,Environmental Services
http://thanet.gov.uk/supplierspend,Thanet District Council,30/06/2015,387757,127724.94,,Bevan Brittan Llp,BEV001,Community Services,Revenue,Services,Legal Services
http://thanet.gov.uk/supplierspend,Thanet District Council,30/06/2015,387661,834.00,,Booker Alexander Ltd,BOO013,Community Services,Revenue,Services,Human Resources
http://thanet.gov.uk/supplierspend,Thanet District Council,30/06/2015,387730,9696.00,,Bramling Construction Ltd,BRA020,Corporate Resources and S151,Balance Sheet,Capital Exp-Non Council Assets,Grants
http://thanet.gov.uk/supplierspend,Thanet District Council,30/06/2015,387326,1605.83,,Bridge Security Cctv Ltd,BRI039,Community Services,Revenue,Services,Facilities And Mangement Serv
http://thanet.gov.uk/supplierspend,Thanet District Council,30/06/2015,387327,750.00,,Bridge Security Cctv Ltd,BRI039,Operational Services,Revenue,Services,Facilities And Mangement Serv
http://thanet.gov.uk/supplierspend,Thanet District Council,30/06/2015,387328,240.00,,Bridge Security Cctv Ltd,BRI039,Corporate Resources and S151,Revenue,Services,Facilities And Mangement Serv
http://thanet.gov.uk/supplierspend,Thanet District Council,30/06/2015,386946,3069.12,,Bytes Software Services Limited,BYT001,East Kent Shared Services,Revenue,Communications & Computing,ICT
http://thanet.gov.uk/supplierspend,Thanet District Council,30/06/2015,386413,319.00,,Canon (Uk) Ltd,CAN021,Corporate Resources and S151,Balance Sheet,Plant And Equipment,Facilities And Mangement Serv
http://thanet.gov.uk/supplierspend,Thanet District Council,30/06/2015,386421,2266.95,,Canon (Uk) Ltd,CAN021,Community Services,Revenue,"Equip, Furniture And Materials",Facilities And Mangement Serv
http://thanet.gov.uk/supplierspend,Thanet District Council,30/06/2015,387319,975.00,,Civica Uk Ltd,CIV003,East Kent Shared Services,Revenue,Expenses,ICT
http://thanet.gov.uk/supplierspend,Thanet District Council,30/06/2015,387715,6000.00,,Cliftonville Residents Association,CLI010,Community Services,Revenue,Grants & Subscriptions,Grants
http://thanet.gov.uk/supplierspend,Thanet District Council,30/06/2015,386331,900.00,,Coastal Publications,COA018,Community Services,Revenue,"Print, Stat And Gen Off Exps",Arts And Leisure Services
http://thanet.gov.uk/supplierspend,Thanet District Council,30/06/2015,387727,3000.00,,Comedy Island Festival,COM052,Community Services,Revenue,Grants & Subscriptions,Grants
http://thanet.gov.uk/supplierspend,Thanet District Council,30/06/2015,386934,244.78,,Computerland Uk Limited,COM045,Operational Services,Revenue,"Equip, Furniture And Materials",ICT
http://thanet.gov.uk/supplierspend,Thanet District Council,30/06/2015,387707,525.00,,Cooke & Co.,COO010,Community Services,Revenue,Grants & Subscriptions,Rent Deposits
http://thanet.gov.uk/supplierspend,Thanet District Council,30/06/2015,387418,1225161.32,,Coombs (Canterbury) Ltd,COO033,Corporate Resources and S151,Balance Sheet,Other Land And Buildings-Hra,Construction-Repair And Maint
http://thanet.gov.uk/supplierspend,Thanet District Council,30/06/2015,386903,87980.22,,Dcb (Kent) Ltd,DCB001,Corporate Resources and S151,Balance Sheet,Repairs And Mtce Holding A/C,Construction-Repair And Maint
http://thanet.gov.uk/supplierspend,Thanet District Council,30/06/2015,386904,7227.14,,Dcb (Kent) Ltd,DCB001,Corporate Resources and S151,Balance Sheet,Repairs And Mtce Holding A/C,Construction-Repair And Maint
http://thanet.gov.uk/supplierspend,Thanet District Council,30/06/2015,386905,2541.00,,Dcb (Kent) Ltd,DCB001,Corporate Resources and S151,Balance Sheet,Repairs And Mtce Holding A/C,Construction-Repair And Maint
http://thanet.gov.uk/supplierspend,Thanet District Council,30/06/2015,385532,481.00,,Delphine Houlton Pr & Media Relations,HOU015,Community Services,Revenue,Services,Arts And Leisure Services
http://thanet.gov.uk/supplierspend,Thanet District Council,30/06/2015,387725,900.00,,Distinctive Systems Ltd,DIS015,Operational Services,Revenue,Communications & Computing,Vehicle Management
http://thanet.gov.uk/supplierspend,Thanet District Council,30/06/2015,386908,631.02,,E Saunders Margate Ltd,SAU001,Corporate Resources and S151,Balance Sheet,Repairs And Mtce Holding A/C,Construction-Repair And Maint
http://thanet.gov.uk/supplierspend,Thanet District Council,30/06/2015,386373,328.48,,Edf Energy Customers Plc,SEE014,Community Services,Revenue,Energy Costs,Utilities
http://thanet.gov.uk/supplierspend,Thanet District Council,30/06/2015,387380,2925.00,,Enviro Technology Services Plc,ENV004,Community Services,Revenue,"Equip, Furniture And Materials",Environmental Services
http://thanet.gov.uk/supplierspend,Thanet District Council,30/06/2015,387384,4167.00,,Enviro Technology Services Plc,ENV004,Community Services,Revenue,"Equip, Furniture And Materials",Environmental Services
http://thanet.gov.uk/supplierspend,Thanet District Council,30/06/2015,387729,6215.00,,Evermech Services Ltd,EVE011,Corporate Resources and S151,Balance Sheet,Capital Exp-Non Council Assets,Grants
http://thanet.gov.uk/supplierspend,Thanet District Council,30/06/2015,387728,749.80,,Family Mosaic Housing,FAM001,Corporate Resources and S151,Balance Sheet,Capital Exp-Non Council Assets,Housing Management
http://thanet.gov.uk/supplierspend,Thanet District Council,30/06/2015,387731,3004.00,,Family Mosaic Housing,FAM001,Corporate Resources and S151,Balance Sheet,Capital Exp-Non Council Assets,Housing Management
http://thanet.gov.uk/supplierspend,Thanet District Council,30/06/2015,387291,1169.00,,Frandham Boarding Kennels,FRA010,Operational Services,Revenue,Services,Environmental Services
http://thanet.gov.uk/supplierspend,Thanet District Council,30/06/2015,387198,556.00,,Gas Contract Services Ltd,GAS004,Corporate Resources and S151,Balance Sheet,Repairs And Mtce Holding A/C,Construction-Repair And Maint
http://thanet.gov.uk/supplierspend,Thanet District Council,30/06/2015,386943,1125.00,,Gerlack & Thorne Ltd,GER001,Operational Services,Revenue,"Repairs,  Alter & Mtce - Build",Construction-Repair And Maint
http://thanet.gov.uk/supplierspend,Thanet District Council,30/06/2015,386944,3850.00,,Gerlack & Thorne Ltd,GER001,Operational Services,Revenue,"Repairs,  Alter & Mtce - Build",Construction-Repair And Maint
http://thanet.gov.uk/supplierspend,Thanet District Council,30/06/2015,387114,770.00,,Gulliver'S Truck Hire Limited,GUL001,Operational Services,Revenue,Cont Hire & Operating Lease,Vehicle Management
http://thanet.gov.uk/supplierspend,Thanet District Council,30/06/2015,386963,3235.93,,Haynes Of Maidstone Ltd,HAY008,Operational Services,Revenue,Direct Transport Costs,Vehicle Management
http://thanet.gov.uk/supplierspend,Thanet District Council,30/06/2015,387108,838.82,,Haynes Of Maidstone Ltd,HAY008,Operational Services,Revenue,Direct Transport Costs,Vehicle Management
http://thanet.gov.uk/supplierspend,Thanet District Council,30/06/2015,386961,650.00,,Hi Way Services Ltd,HIW002,Operational Services,Revenue,"Repairs,  Alter & Mtce - Build",Highway Equipment And Material
http://thanet.gov.uk/supplierspend,Thanet District Council,30/06/2015,387126,2100.00,,Holt & Wotton Ltd,HOL001,Corporate Resources and S151,Balance Sheet,Other Land And Buildings-Hra,Building Construction Material
http://thanet.gov.uk/supplierspend,Thanet District Council,30/06/2015,386453,263.12,,Hr Go Recruitment Ltd,HRG002,Community Services,Revenue,Agency Staff,Human Resources
http://thanet.gov.uk/supplierspend,Thanet District Council,30/06/2015,386876,1060.50,,Hr Go Recruitment Ltd,HRG002,Operational Services,Revenue,Agency Staff,Human Resources
http://thanet.gov.uk/supplierspend,Thanet District Council,30/06/2015,386877,269.10,,Hr Go Recruitment Ltd,HRG002,Community Services,Revenue,Agency Staff,Human Resources
http://thanet.gov.uk/supplierspend,Thanet District Council,30/06/2015,387312,1754.74,,Hr Go Recruitment Ltd,HRG002,Operational Services,Revenue,Agency Staff,Human Resources
http://thanet.gov.uk/supplierspend,Thanet District Council,30/06/2015,387313,495.01,,Hr Go Recruitment Ltd,HRG002,Operational Services,Revenue,Agency Staff,Human Resources
http://thanet.gov.uk/supplierspend,Thanet District Council,30/06/2015,387314,868.65,,Hr Go Recruitment Ltd,HRG002,Operational Services,Revenue,Agency Staff,Human Resources
http://thanet.gov.uk/supplierspend,Thanet District Council,30/06/2015,387315,287.04,,Hr Go Recruitment Ltd,HRG002,Community Services,Revenue,Agency Staff,Human Resources
http://thanet.gov.uk/supplierspend,Thanet District Council,30/06/2015,387321,1060.50,,Hr Go Recruitment Ltd,HRG002,Operational Services,Revenue,Agency Staff,Human Resources
http://thanet.gov.uk/supplierspend,Thanet District Council,30/06/2015,386709,196537.05,,J Breheny Contractors Ltd,BRE002,Corporate Resources and S151,Balance Sheet,Infrastructure,Construction-Repair And Maint
http://thanet.gov.uk/supplierspend,Thanet District Council,30/06/2015,387711,7700.00,,Jj Uk Limited,JJU001,Corporate Resources and S151,Balance Sheet,Capital Exp-Non Council Assets,Environmental Services
http://thanet.gov.uk/supplierspend,Thanet District Council,30/06/2015,387710,589.10,,John Gale,GAL001,Corporate Resources and S151,Balance Sheet,Capital Exp-Non Council Assets,Grants
http://thanet.gov.uk/supplierspend,Thanet District Council,30/06/2015,387263,280.29,,Johnston Sweepers Ltd,JOH008,Operational Services,Revenue,Direct Transport Costs,Vehicle Management
http://thanet.gov.uk/supplierspend,Thanet District Council,30/06/2015,387269,1500.00,,Jump It Recruitment Solutions Ltd,JUM001,East Kent Shared Services,Revenue,Agency Staff,Human Resources
http://thanet.gov.uk/supplierspend,Thanet District Council,30/06/2015,386948,575.36,,Kelway Ltd,KEL003,East Kent Shared Services,Revenue,Communications & Computing,ICT
http://thanet.gov.uk/supplierspend,Thanet District Council,30/06/2015,387150,1985.76,,Kelway Ltd,KEL003,Operational Services,Revenue,Communications & Computing,ICT
http://thanet.gov.uk/supplierspend,Thanet District Council,30/06/2015,386846,3000.00,,Kent County Council,KCC002,Community Services,Revenue,Services,Various Cats-Public Sector
http://thanet.gov.uk/supplierspend,Thanet District Council,30/06/2015,387238,15000.00,,Kent County Council,KCC002,Operational Services,Revenue,Services,Various Cats-Public Sector
http://thanet.gov.uk/supplierspend,Thanet District Council,30/06/2015,386726,476.85,,Kent County Council (Kcs),KCC003,Community Services,Revenue,Energy Costs,Facilities And Mangement Serv
http://thanet.gov.uk/supplierspend,Thanet District Council,30/06/2015,386728,211.91,,Kent County Council (Kcs),KCC003,Community Services,Revenue,Energy Costs,Facilities And Mangement Serv
http://thanet.gov.uk/supplierspend,Thanet District Council,30/06/2015,386729,421.39,,Kent County Council (Kcs),KCC003,Operational Services,Revenue,Energy Costs,Facilities And Mangement Serv
http://thanet.gov.uk/supplierspend,Thanet District Council,30/06/2015,386730,329.44,,Kent County Council (Kcs),KCC003,Operational Services,Revenue,Energy Costs,Facilities And Mangement Serv
http://thanet.gov.uk/supplierspend,Thanet District Council,30/06/2015,386731,668.59,,Kent County Council (Kcs),KCC003,Community Services,Revenue,Energy Costs,Facilities And Mangement Serv
http://thanet.gov.uk/supplierspend,Thanet District Council,30/06/2015,386732,756.26,,Kent County Council (Kcs),KCC003,Community Services,Revenue,Energy Costs,Facilities And Mangement Serv
http://thanet.gov.uk/supplierspend,Thanet District Council,30/06/2015,386734,1986.45,,Kent County Council (Kcs),KCC003,Operational Services,Revenue,Energy Costs,Facilities And Mangement Serv
http://thanet.gov.uk/supplierspend,Thanet District Council,30/06/2015,386881,5342.10,,Kent County Council (Kcs),KCC003,Community Services,Revenue,Energy Costs,Facilities And Mangement Serv
http://thanet.gov.uk/supplierspend,Thanet District Council,30/06/2015,386882,6014.47,,Kent County Council (Kcs),KCC003,Operational Services,Revenue,Energy Costs,Facilities And Mangement Serv
http://thanet.gov.uk/supplierspend,Thanet District Council,30/06/2015,386883,2264.87,,Kent County Council (Kcs),KCC003,Operational Services,Revenue,Energy Costs,Facilities And Mangement Serv
http://thanet.gov.uk/supplierspend,Thanet District Council,30/06/2015,387347,2988.15,,Kent County Council (Kcs),KCC003,Community Services,Revenue,"Equip, Furniture And Materials",Facilities And Mangement Serv
http://thanet.gov.uk/supplierspend,Thanet District Council,30/06/2015,387347,185.98,,Kent County Council (Kcs),KCC003,Operational Services,Revenue,"Equip, Furniture And Materials",Facilities And Mangement Serv
http://thanet.gov.uk/supplierspend,Thanet District Council,30/06/2015,387227,1875.00,,Kudos Architecture&Surveying Limited,KUD002,Corporate Resources and S151,Balance Sheet,Rechargeable Works,Consultancy
http://thanet.gov.uk/supplierspend,Thanet District Council,30/06/2015,387113,386.50,,Legacy Telecom Ltd,LEG004,East Kent Shared Services,Revenue,Communications & Computing,ICT
http://thanet.gov.uk/supplierspend,Thanet District Council,30/06/2015,387428,2487.77,,Lobster Van Hire Ltd,LOB001,Operational Services,Revenue,Cont Hire & Operating Lease,Vehicle Management
http://thanet.gov.uk/supplierspend,Thanet District Council,30/06/2015,387308,2500.00,,London Borough Of Camden,LON004,Community Services,Revenue,Grants & Subscriptions,Various Cats-Public Sector
http://thanet.gov.uk/supplierspend,Thanet District Council,30/06/2015,387305,559.32,,Loomis Uk Ltd,LOO002,Operational Services,Revenue,Services,Financial Services
http://thanet.gov.uk/supplierspend,Thanet District Council,30/06/2015,387606,399.40,,Lyreco Uk Limited,LYR001,Community Services,Revenue,"Print, Stat And Gen Off Exps",Stationery
http://thanet.gov.uk/supplierspend,Thanet District Council,30/06/2015,386889,305.50,,Magnartism Ltd,MAG006,Community Services,Revenue,"Equip, Furniture And Materials",Stationery
http://thanet.gov.uk/supplierspend,Thanet District Council,30/06/2015,387918,278477.19,,Maidstone Borough Council,MAI002,Corporate Resources and S151,Balance Sheet,Collection Fund,Various Cats-Public Sector
http://thanet.gov.uk/supplierspend,Thanet District Council,30/06/2015,387918,769948.20,,Maidstone Borough Council,MAI002,Corporate Resources and S151,Balance Sheet,Revenue Financing,Various Cats-Public Sector
http://thanet.gov.uk/supplierspend,Thanet District Council,30/06/2015,387714,3000.00,,Margate Carnival Group,MAR044,Community Services,Revenue,Grants & Subscriptions,Grants
http://thanet.gov.uk/supplierspend,Thanet District Council,30/06/2015,386492,900.00,,Maxwells Grounds Maintenance Ltd,MAX002,Operational Services,Revenue,"Repairs,  Alter & Mtce - Build",Construction-Repair And Maint
http://thanet.gov.uk/supplierspend,Thanet District Council,30/06/2015,387753,9500.00,,Mbm Productions Limited,MBM001,Community Services,Revenue,Services,Facilities And Mangement Serv
http://thanet.gov.uk/supplierspend,Thanet District Council,30/06/2015,387392,11292.40,,Mears Ltd,MEA003,Corporate Resources and S151,Balance Sheet,Repairs And Mtce Holding A/C,Construction-Repair And Maint
http://thanet.gov.uk/supplierspend,Thanet District Council,30/06/2015,387393,52623.67,,Mears Ltd,MEA003,Corporate Resources and S151,Balance Sheet,Repairs And Mtce Holding A/C,Construction-Repair And Maint
http://thanet.gov.uk/supplierspend,Thanet District Council,30/06/2015,387394,6322.73,,Mears Ltd,MEA003,Corporate Resources and S151,Balance Sheet,Repairs And Mtce Holding A/C,Construction-Repair And Maint
http://thanet.gov.uk/supplierspend,Thanet District Council,30/06/2015,387395,282.30,,Mears Ltd,MEA003,Community Services,Revenue,"Repairs,  Alter & Mtce - Build",Construction-Repair And Maint
http://thanet.gov.uk/supplierspend,Thanet District Council,30/06/2015,387603,237.79,,Mears Ltd,MEA003,Community Services,Revenue,"Repairs,  Alter & Mtce - Build",Construction-Repair And Maint
http://thanet.gov.uk/supplierspend,Thanet District Council,30/06/2015,387599,840.00,,Meltdowns Limited,MEL006,Community Services,Revenue,"Repairs,  Alter & Mtce - Build",Facilities And Mangement Serv
http://thanet.gov.uk/supplierspend,Thanet District Council,30/06/2015,387265,4252.00,,Messagemaker Displays Ltd,MES005,Operational Services,Revenue,"Equip, Furniture And Materials",Highway Equipment And Material
http://thanet.gov.uk/supplierspend,Thanet District Council,30/06/2015,387131,1344.00,,Michael Page Int Recruitment Ltd,PAG008,Corporate Resources and S151,Revenue,Services,Human Resources
http://thanet.gov.uk/supplierspend,Thanet District Council,30/06/2015,387590,972.00,,Michael Page Int Recruitment Ltd,PAG008,Corporate Resources and S151,Revenue,Services,Human Resources
http://thanet.gov.uk/supplierspend,Thanet District Council,30/06/2015,387129,464.50,,Midland Software Limited,MID013,Corporate Resources and S151,Balance Sheet,Plant And Equipment,ICT
http://thanet.gov.uk/supplierspend,Thanet District Council,30/06/2015,387712,1000.00,,Millmead Childrens Ctr Prtnrship Ltd,MCC009,Community Services,Revenue,Grants & Subscriptions,Grants
http://thanet.gov.uk/supplierspend,Thanet District Council,30/06/2015,386474,4250.00,,Milmer Consulting Limited,MIL046,Operational Services,Revenue,Services,Environmental Services
http://thanet.gov.uk/supplierspend,Thanet District Council,30/06/2015,387231,3235.00,,Mr C S & Mrs T M Wilson,WIL071,Corporate Resources and S151,Balance Sheet,Plant And Equipment,Facilities And Mangement Serv
http://thanet.gov.uk/supplierspend,Thanet District Council,30/06/2015,386950,760.00,,Mr Philip Woolfe,WOO030,Operational Services,Revenue,Services,Legal Services
http://thanet.gov.uk/supplierspend,Thanet District Council,30/06/2015,386886,300.00,,Mrs K Hooper,HOO004,Chief Executive,Revenue,Services,Consultancy
http://thanet.gov.uk/supplierspend,Thanet District Council,30/06/2015,387701,5000.00,,Neopost Ltd Credifon,NEO002,Community Services,Revenue,Communications & Computing,Mail Services
http://thanet.gov.uk/supplierspend,Thanet District Council,30/06/2015,387709,5891.00,,Northwood Builders,NOR002,Corporate Resources and S151,Balance Sheet,Capital Exp-Non Council Assets,Grants
http://thanet.gov.uk/supplierspend,Thanet District Council,30/06/2015,386907,549.84,,Npower Direct Limited,NPO003,Community Services,Revenue,Energy Costs,Utilities
http://thanet.gov.uk/supplierspend,Thanet District Council,30/06/2015,386776,297.64,,Orbis Protect Limited,ORB009,Community Services,Revenue,Services,Facilities And Mangement Serv
http://thanet.gov.uk/supplierspend,Thanet District Council,30/06/2015,387716,640.00,,Paul Messenger Promotions,MES004,Community Services,Revenue,Grants & Subscriptions,Grants
http://thanet.gov.uk/supplierspend,Thanet District Council,30/06/2015,387151,963.20,,Phoenix Software Ltd,PHO002,East Kent Shared Services,Revenue,Communications & Computing,ICT
http://thanet.gov.uk/supplierspend,Thanet District Council,30/06/2015,386786,381.07,,Premier Paper Group Limited,PRE035,Community Services,Revenue,"Print, Stat And Gen Off Exps",Stationery
http://thanet.gov.uk/supplierspend,Thanet District Council,30/06/2015,386045,7448.34,,Probrand Ltd,PRO012,East Kent Shared Services,Revenue,Communications & Computing,ICT
http://thanet.gov.uk/supplierspend,Thanet District Council,30/06/2015,387316,362.74,,Probrand Ltd,PRO012,East Kent Shared Services,Revenue,Communications & Computing,ICT
http://thanet.gov.uk/supplierspend,Thanet District Council,30/06/2015,387923,143369.32,,Public Works Loan Board,PWL001,Corporate Resources and S151,Balance Sheet,Debit Interest And Expenses,Investments And Loans
http://thanet.gov.uk/supplierspend,Thanet District Council,30/06/2015,387230,1204.50,,Puls Global Ltd,PUL006,Operational Services,Revenue,"Equip, Furniture And Materials",Facilities And Mangement Serv
http://thanet.gov.uk/supplierspend,Thanet District Council,30/06/2015,386490,1200.75,,Quinneys Fencing & Sect Building Man,QUI001,Operational Services,Revenue,"Equip, Furniture And Materials",Building Construction Material
http://thanet.gov.uk/supplierspend,Thanet District Council,30/06/2015,387245,700.00,,R Cannon,CAN007,Operational Services,Revenue,Services,Maritime Services
http://thanet.gov.uk/supplierspend,Thanet District Council,30/06/2015,387386,250.00,,R J Broadley Tree Surgery,RJB002,Corporate Resources and S151,Balance Sheet,Repairs And Mtce Holding A/C,Horticultural
http://thanet.gov.uk/supplierspend,Thanet District Council,30/06/2015,387260,1500.00,,Red Snapper Learning Ltd,RED019,Community Services,Revenue,Services,Human Resources
http://thanet.gov.uk/supplierspend,Thanet District Council,30/06/2015,387754,284.17,,RETRACTED PERSONAL DATA,REI006,Corporate Resources and S151,Revenue,Interview Expenses,Non Trade Payee
http://thanet.gov.uk/supplierspend,Thanet District Council,30/06/2015,386519,4272.54,,Royal Mail,ROY004,Community Services,Revenue,Communications & Computing,Mail Services
http://thanet.gov.uk/supplierspend,Thanet District Council,30/06/2015,387162,2435.77,,Royal Mail,ROY004,Community Services,Revenue,Communications & Computing,Mail Services
http://thanet.gov.uk/supplierspend,Thanet District Council,30/06/2015,387417,3758.78,,Royal Mail,ROY004,Community Services,Revenue,Communications & Computing,Mail Services
http://thanet.gov.uk/supplierspend,Thanet District Council,30/06/2015,387759,2058.00,,Safety & Management Solutions Ltd,SAF013,Operational Services,Revenue,Services,Health And Safety
http://thanet.gov.uk/supplierspend,Thanet District Council,30/06/2015,386844,2437.50,,Sarah Morgan Gardens,SAR005,Community Services,Revenue,Services,Horticultural
http://thanet.gov.uk/supplierspend,Thanet District Council,30/06/2015,387919,-219956.00,,Secretary Of State,SEC003,Corporate Resources and S151,Revenue,Revenue Financing,Government Agencies
http://thanet.gov.uk/supplierspend,Thanet District Council,30/06/2015,387919,1333956.00,,Secretary Of State,SEC003,Corporate Resources and S151,Balance Sheet,Collection Fund,Government Agencies
http://thanet.gov.uk/supplierspend,Thanet District Council,30/06/2015,386872,900.00,,Sellick Partnership Ltd,SEL011,Community Services,Revenue,Services,Human Resources
http://thanet.gov.uk/supplierspend,Thanet District Council,30/06/2015,387246,900.00,,Sellick Partnership Ltd,SEL011,Community Services,Revenue,Services,Human Resources
http://thanet.gov.uk/supplierspend,Thanet District Council,30/06/2015,386928,821.14,,Serco Ltd,SER002,Operational Services,Revenue,"Repairs,  Alter & Mtce - Build",Building Construction Material
http://thanet.gov.uk/supplierspend,Thanet District Council,30/06/2015,386930,381.28,,Serco Ltd,SER002,Operational Services,Revenue,"Repairs,  Alter & Mtce - Build",Building Construction Material
http://thanet.gov.uk/supplierspend,Thanet District Council,30/06/2015,386964,3942.67,,Sharpe Pritchard Llp,SHA030,Community Services,Revenue,Services,Legal Services
http://thanet.gov.uk/supplierspend,Thanet District Council,30/06/2015,386827,240.00,,Shepway District Council,SHE001,Community Services,Revenue,Grants & Subscriptions,Various Cats-Public Sector
http://thanet.gov.uk/supplierspend,Thanet District Council,30/06/2015,387120,980.00,,Sjr Pm Solutions Limited,SJR001,East Kent Shared Services,Revenue,Services,ICT
http://thanet.gov.uk/supplierspend,Thanet District Council,30/06/2015,385571,268.76,,Southern Electric,SEL007,Operational Services,Revenue,Energy Costs,Utilities
http://thanet.gov.uk/supplierspend,Thanet District Council,30/06/2015,386738,2645.95,,Southern Electric,SEL007,Community Services,Revenue,Energy Costs,Utilities
http://thanet.gov.uk/supplierspend,Thanet District Council,30/06/2015,386740,-494.01,,Southern Electric,SEL007,Operational Services,Revenue,Energy Costs,Utilities
http://thanet.gov.uk/supplierspend,Thanet District Council,30/06/2015,386742,-268.76,,Southern Electric,SEL007,Operational Services,Revenue,Energy Costs,Utilities
http://thanet.gov.uk/supplierspend,Thanet District Council,30/06/2015,386747,296.08,,Southern Electric,SEL007,Operational Services,Revenue,Energy Costs,Utilities
http://thanet.gov.uk/supplierspend,Thanet District Council,30/06/2015,386755,298.47,,Southern Electric,SEL007,Operational Services,Revenue,Energy Costs,Utilities
http://thanet.gov.uk/supplierspend,Thanet District Council,30/06/2015,386799,-2645.95,,Southern Electric,SEL007,Community Services,Revenue,Energy Costs,Utilities
http://thanet.gov.uk/supplierspend,Thanet District Council,30/06/2015,386809,1077.77,,Southern Electric,SEL007,Community Services,Revenue,Energy Costs,Utilities
http://thanet.gov.uk/supplierspend,Thanet District Council,30/06/2015,386817,256.13,,Southern Electric,SEL007,Operational Services,Revenue,Energy Costs,Utilities
http://thanet.gov.uk/supplierspend,Thanet District Council,30/06/2015,386820,268.32,,Southern Electric,SEL007,Operational Services,Revenue,Energy Costs,Utilities
http://thanet.gov.uk/supplierspend,Thanet District Council,30/06/2015,387185,2958.11,,Southern Electric,SEL007,Community Services,Revenue,Energy Costs,Utilities
http://thanet.gov.uk/supplierspend,Thanet District Council,30/06/2015,387188,15707.92,,Southern Electric,SEL007,Community Services,Revenue,Energy Costs,Utilities
http://thanet.gov.uk/supplierspend,Thanet District Council,30/06/2015,387203,928.59,,Southern Electric,SEL007,Operational Services,Revenue,Energy Costs,Utilities
http://thanet.gov.uk/supplierspend,Thanet District Council,30/06/2015,387212,326.62,,Southern Electric,SEL007,Community Services,Revenue,Energy Costs,Utilities
http://thanet.gov.uk/supplierspend,Thanet District Council,30/06/2015,387215,6417.85,,Southern Electric,SEL007,Community Services,Revenue,Energy Costs,Utilities
http://thanet.gov.uk/supplierspend,Thanet District Council,30/06/2015,386910,1538.39,,Southern Water,SWA001,Operational Services,Revenue,Water Services,Utilities
http://thanet.gov.uk/supplierspend,Thanet District Council,30/06/2015,386911,1480.36,,Southern Water,SWA001,Operational Services,Revenue,Water Services,Utilities
http://thanet.gov.uk/supplierspend,Thanet District Council,30/06/2015,386912,1101.37,,Southern Water,SWA001,Operational Services,Revenue,Water Services,Utilities
http://thanet.gov.uk/supplierspend,Thanet District Council,30/06/2015,386913,345.90,,Southern Water,SWA001,Community Services,Revenue,Water Services,Utilities
http://thanet.gov.uk/supplierspend,Thanet District Council,30/06/2015,386915,281.89,,Southern Water,SWA001,Operational Services,Revenue,Water Services,Utilities
http://thanet.gov.uk/supplierspend,Thanet District Council,30/06/2015,386917,260.03,,Southern Water,SWA001,Operational Services,Revenue,Water Services,Utilities
http://thanet.gov.uk/supplierspend,Thanet District Council,30/06/2015,387244,490.00,,Stagecoach Services Limited,STA023,Corporate Resources and S151,Balance Sheet,Staff Bus Permits Holding A/C,Public Transport
http://thanet.gov.uk/supplierspend,Thanet District Council,30/06/2015,386706,312.20,,Standfast Burglar Alarm Co (Ek) Ltd,STA003,Operational Services,Revenue,"Equip, Furniture And Materials",Facilities And Mangement Serv
http://thanet.gov.uk/supplierspend,Thanet District Council,30/06/2015,387304,543.75,,Stokes Bros,STO001,Operational Services,Revenue,"Repairs,  Alter & Mtce - Build",Building Construction Material
http://thanet.gov.uk/supplierspend,Thanet District Council,30/06/2015,386315,344.50,,Stuart Ball Stonemasons,BAL006,Operational Services,Revenue,"Equip, Furniture And Materials",Cemetery And Crematorium
http://thanet.gov.uk/supplierspend,Thanet District Council,30/06/2015,386892,826.50,,Tacklestore Ltd,TAC004,Operational Services,Revenue,"Equip, Furniture And Materials",Maritime Services
http://thanet.gov.uk/supplierspend,Thanet District Council,30/06/2015,386850,602.48,,Tfa Fuel Services Ltd,TFA003,Operational Services,Revenue,"Equip, Furniture And Materials",Utilities
http://thanet.gov.uk/supplierspend,Thanet District Council,30/06/2015,386796,486.00,,Thanet Safe Limited,TSA004,Operational Services,Revenue,"Equip, Furniture And Materials",Facilities And Mangement Serv
http://thanet.gov.uk/supplierspend,Thanet District Council,30/06/2015,384869,1890.00,,Thomson Reuters,THO043,Community Services,Revenue,"Print, Stat And Gen Off Exps",Human Resources
http://thanet.gov.uk/supplierspend,Thanet District Council,30/06/2015,387247,336041.64,,Topbond Plc,TOP010,Corporate Resources and S151,Balance Sheet,Other Land And Buildings-Hra,Construction-Repair And Maint
http://thanet.gov.uk/supplierspend,Thanet District Council,30/06/2015,387153,242.01,,Veolia Es (Uk) Ltd,VEO001,Operational Services,Revenue,Cleaning & Domestic Supplies,Environmental Services
http://thanet.gov.uk/supplierspend,Thanet District Council,30/06/2015,387163,1490.61,,Veolia Es (Uk) Ltd,VEO001,Operational Services,Revenue,Cleaning & Domestic Supplies,Environmental Services
http://thanet.gov.uk/supplierspend,Thanet District Council,30/06/2015,386960,570.15,,Viridor Waste Management Ltd,VIR003,Community Services,Revenue,Private Contractors,Environmental Services
http://thanet.gov.uk/supplierspend,Thanet District Council,30/06/2015,387242,1000.00,,Visit Kent Ltd,VIS005,Community Services,Revenue,Miscellaneous Expenses,Arts And Leisure Services
http://thanet.gov.uk/supplierspend,Thanet District Council,30/06/2015,386484,250.00,,W Brazil & Bros,BRA001,Operational Services,Revenue,Services,Environmental Services
http://thanet.gov.uk/supplierspend,Thanet District Council,30/06/2015,386931,324.45,,Westbury Industrial Supplies Ltd,WES042,Operational Services,Revenue,"Clothes, Uniforms & Laundry",Clothing
http://thanet.gov.uk/supplierspend,Thanet District Council,30/06/2015,387331,3000.00,,Westgate & Westbrook Residents Ass,WES011,Operational Services,Revenue,Services,Horticultural
http://thanet.gov.uk/supplierspend,Thanet District Council,30/06/2015,387755,31440.00,,Westgate On Sea Town Council,WES052,Corporate Resources and S151,Balance Sheet,Collection Fund,Various Cats-Public Sector
http://thanet.gov.uk/supplierspend,Thanet District Council,30/06/2015,387755,2098.63,,Westgate On Sea Town Council,WES052,Operational Services,Revenue,Other Local Authorities,Various Cats-Public Sector
http://thanet.gov.uk/supplierspend,Thanet District Council,30/06/2015,386887,750.00,,Will Glanfield,GLA006,Community Services,Revenue,"Repairs,  Alter & Mtce - Build",Arts And Leisure Services
http://thanet.gov.uk/supplierspend,Thanet District Council,30/06/2015,387713,500.00,,Windmill Community Gardens,WIN017,Community Services,Revenue,Grants & Subscriptions,Human Resources
